{"text_format":"1","workbook":"xlsx","n_sheets":8,"sheets":["Information","Employee Job Change Form","Action Reasons","Departments","Company","Job Codes","RTS-Empl Class-Class Indic","Paygroup"],"not_rendered":{"charts":0,"images":0,"macros":1,"external_links":0,"defined_names":1,"comments":2,"pivot_tables":0},"unopened":[],"bounds":{"document_bytes":16777216,"sheet_cells":100000,"rows_first":2000,"rows_last":500,"rows_between":2000,"halvings":0,"cell_chars":16384,"cell_head_chars":4096},"cells_cut":0,"cells_raw":0,"read":"whole","date_system":"1900"}

{"sheet":"Information","index":0,"n_rows":39,"n_cols":1,"rows_kept":39,"cut":false,"hidden":false,"merged":[]}
[]
[]
["INFORMATION ON THE EMPLOYEE JOB CHANGE FORM"]
["The Employee Job Change Form is a multipurpose form used to update employee data in Comet HR.  "]
["The department designates the person responsible for completing the form.  It may be filled out by"]
["the supervisor, department Comet HR Representative or the HR Generalist Team."]
["The form must be signed by an authorized department representative before the data will be "]
["entered in Comet HR."]
["The following data is always needed when filling out the form: Employee ID; Employee Name; "]
["Action/Reason and all other information that changes as a result of the action."]
[]
["The form is used for:"]
["Job Change Actions"]
["Additional Assignment"]
["Assignment End "]
["Data Change"]
["Demotion"]
["Pay Rate Change"]
["Promotion"]
["Position Change"]
["Reclassification"]
["Transfer"]
[]
["Employee Status Changes"]
["Family Status "]
["Layoff"]
["Paid Leave of Absence"]
["Recall from Layoff"]
["Return from Leave"]
["Retirement"]
["Termination"]
["Unpaid Leave of Absence"]
[]
["It is important you have the employee Job Data record open in Comet HR while working on this form"]
["in order to locate the information you need to complete it"]
[]
[]
[]
["Revised: 02/18/2016"]

{"sheet":"Employee Job Change Form","index":1,"n_rows":43,"n_cols":10,"rows_kept":43,"cut":false,"hidden":false,"merged":[[21,0,21,9],[19,2,19,3],[23,3,23,4],[24,3,24,4],[30,6,30,7],[27,8,27,9],[27,6,27,7],[30,4,30,5],[22,3,22,4],[29,2,29,3],[22,7,22,8],[25,7,25,8],[27,3,27,4],[20,2,20,3],[20,5,20,6],[20,7,20,9],[10,0,10,3],[12,4,12,8],[13,4,13,8],[9,4,9,9],[0,0,0,8],[1,0,1,1],[1,3,1,4],[1,5,1,9],[6,1,6,2],[2,0,2,1],[2,5,2,9],[3,0,3,2],[4,0,4,2],[3,5,4,7],[3,8,4,9],[5,5,5,9],[6,3,6,4],[6,6,6,7],[6,8,6,9],[5,0,5,2],[19,5,19,6],[18,0,18,9],[11,9,13,9],[11,3,15,3],[12,0,13,2],[8,0,8,9],[19,7,19,9],[10,4,10,9],[17,2,17,3],[16,4,16,9],[17,4,17,9],[15,4,15,9],[33,0,33,9],[32,6,32,9],[34,0,34,7],[41,8,41,9],[24,7,24,8],[26,8,26,9],[30,8,30,9],[34,8,34,9],[31,0,31,9],[43,8,43,9],[43,0,43,7],[39,0,39,7],[37,8,37,9],[37,0,37,7],[38,8,38,9],[40,8,40,9],[42,0,42,7],[39,8,39,9],[41,0,41,7],[38,0,38,7],[40,0,40,7],[42,8,42,9],[11,4,11,8],[35,8,35,9],[36,0,36,7],[26,0,26,5],[26,6,26,7],[25,3,25,4],[22,5,22,6],[23,7,23,8],[23,5,23,6],[24,5,24,6],[25,5,25,6],[35,0,35,7],[28,0,28,9],[36,8,36,9],[29,4,29,9],[14,4,14,9]]}
["Employee Job Change Form"]
["*Employee ID Number:",null,null,"*Employee Name:"]
["*Effective date of Action:",null,null,"*Action/Reasons:"]
["*Are these changes permanent?",null,null,null,null,"If temporary, \nindicate expected end date:"]
["*Is this a Detail?"]
["*Is this a Concurrent Job?"]
["*Dept Code:",null,null,"Location Code:",null,null,"Company Code:"]
[]
["*Job Code/Job Title:"]
["Position Number (if applicable):"]
["REGULAR/TEMPORAY/SEASONAL STATUS",null,null,null,"HOURS STATUS"]
[]
[]
[]
["EMPLOYEE CLASS",null,null,null,"CLASSIFIED INDICATOR"]
[]
["PAY GROUP (if Detail use postive pay group for all records): ",null,null,null,"STANDARD HOURS PER WEEK (use 0 for details or intermittent):"]
[]
[]
["Salary Adm Plan","Salary Grade","Current Step",null,"New Step","Current Base Rate",null,"New Base Rate"]
[]
["JOB EARNINGS DISTRIBUTION (Combo Code)"]
["Percent","Earn Code","Fund ","Department",null,"Task",null,"Project",null,"Activity"]
[null,"REG"]
[null,"REG"]
[null,"REG"]
["PROBATION",null,null,null,null,null,"PROBATION END DATE",null,"DATE LAST WORKED"]
[]
[]
["Union Code","New Union Code","Officer Code",null,"FICA Status"]
[]
[]
["Requires SEI (Statement of Economic Interest)"]
[]
["*Submitted By (type or print name below)",null,null,null,null,null,null,null,"*Date - enter below"]
[]
["*Approved By (Signature of authorized department representative below)",null,null,null,null,null,null,null,"*Date - enter below"]
[]
["*If Transfer (Signature of accepting department representative below)",null,null,null,null,null,null,null,"*Date - enter below"]
[]
["*If Transfer or Voluntary Demontion (Employee Signature below)",null,null,null,null,null,null,null,"*Date - enter below"]
[]
["*Entered into HRIS by (HRIS Representative Signature below)",null,null,null,null,null,null,null,"*Date - enter below"]

{"sheet":"Action Reasons","index":2,"n_rows":183,"n_cols":3,"rows_kept":183,"cut":false,"hidden":false,"merged":[]}
["Action Descr","Reason Descr","Action/Reasons"]
[]
[]
["Additional Job","Concurrent Job",{"$f":"CONCATENATE(A4, \"  \", B4)","v":"Additional Job  Concurrent Job"}]
["Additional Job","Detail",{"$f":"CONCATENATE(A5, \"  \", B5)","v":"Additional Job  Detail"}]
["Additional Job","Restricted Work Detail","Additional Job  Restricted Work Detail"]
["Additional Job","Workforce Utilzation Detail","Additional Job  Workforce Utilzation Detail"]
["Assignment End","End Additional Assignment","Assignment End  End Additional Assignment"]
["Demotion","Bump Down  Diff Job Title-Grd","Demotion  Bump Down  Diff Job Title-Grd"]
["Demotion","Permanent, Disciplinary","Demotion  Permanent, Disciplinary"]
["Demotion","Permanent, Involuntary","Demotion  Permanent, Involuntary"]
["Demotion","Permanent, Voluntary","Demotion  Permanent, Voluntary"]
["Demotion","Reclassification Downgrade","Demotion  Reclassification Downgrade"]
["Demotion","Reversion Occupational Transfr","Demotion  Reversion Occupational Transfr"]
["Demotion","Temporary, Disciplinary","Demotion  Temporary, Disciplinary"]
["Demotion","Temporary, Involuntary","Demotion  Temporary, Involuntary"]
["Demotion","Temporary, Voluntary","Demotion  Temporary, Voluntary"]
["Data Change","Add/Change Supervisor","Data Change  Add/Change Supervisor"]
["Data Change","Benefits Job Data Update","Data Change  Benefits Job Data Update"]
["Data Change","Change Leave Accrual Date","Data Change  Change Leave Accrual Date"]
["Data Change","Change Longevity Date","Data Change  Change Longevity Date"]
["Data Change","Change Seniority Date","Data Change  Change Seniority Date"]
["Data Change","Classified Indicator Change","Data Change  Classified Indicator Change"]
["Data Change","Detail/Concurrent Job Extended","Data Change  Detail/Concurrent Job Extended"]
["Data Change","Earnings Distribution Change","Data Change  Earnings Distribution Change"]
["Data Change","Employee Class Change","Data Change  Employee Class Change"]
["Data Change","Employee Type Change","Data Change  Employee Type Change"]
["Data Change","Expected Job End Date Change","Data Change  Expected Job End Date Change"]
["Data Change","Expected Return Date Change","Data Change  Expected Return Date Change"]
["Data Change","FLSA Status Change","Data Change  FLSA Status Change"]
["Data Change","Full/Part/Intermittent Time Ch","Data Change  Full/Part/Intermittent Time Ch"]
["Data Change","Hours Adjustment-Class","Data Change  Hours Adjustment-Class"]
["Data Change","Hours Adjustment-Longvty","Data Change  Hours Adjustment-Longvty"]
["Data Change","Location Code Change","Data Change  Location Code Change"]
["Data Change","Misc Job Data Update","Data Change  Misc Job Data Update"]
["Data Change","Pay Group Change","Data Change  Pay Group Change"]
["Data Change","Permit/Temporary Work Extended","Data Change  Permit/Temporary Work Extended"]
["Data Change","Position Entered","Data Change  Position Entered"]
["Data Change","Position Override Change","Data Change  Position Override Change"]
["Data Change","Position Removed","Data Change  Position Removed"]
["Data Change","Reg/Temp/Seasonal Change","Data Change  Reg/Temp/Seasonal Change"]
["Data Change","Restricted Wk Stat RTW Prg","Data Change  Restricted Wk Stat RTW Prg"]
["Data Change","Restricted Work End","Data Change  Restricted Work End"]
["Data Change","Salary Grade Change","Data Change  Salary Grade Change"]
["Data Change","Special Assign Pay Extended","Data Change  Special Assign Pay Extended"]
["Data Change","Standard Hours Change","Data Change  Standard Hours Change"]
["Data Change","Union Code Change","Data Change  Union Code Change"]
["Data Change","X Error Correct-FICA Status","Data Change  X Error Correct-FICA Status"]
["Hire","New Hire - Regular","Hire  New Hire - Regular"]
["Hire","Temporary","Hire  Temporary"]
["Job Reclassification","Class Maintenance Study (HR)","Job Reclassification  Class Maintenance Study (HR)"]
["Job Reclassification","Job Reclassification","Job Reclassification  Job Reclassification"]
["Job Reclassification","New Title,Same Class Grade","Job Reclassification  New Title,Same Class Grade"]
["Unpaid Leave of Absence","Administrative Unpaid Leave","Unpaid Leave of Absence  Administrative Unpaid Leave"]
["Unpaid Leave of Absence","Canadian Forces","Unpaid Leave of Absence  Canadian Forces"]
["Unpaid Leave of Absence","Candidate for Public Office","Unpaid Leave of Absence  Candidate for Public Office"]
["Unpaid Leave of Absence","Educational Leave","Unpaid Leave of Absence  Educational Leave"]
["Unpaid Leave of Absence","Elect, Appoint or NonCity Posn","Unpaid Leave of Absence  Elect, Appoint or NonCity Posn"]
["Unpaid Leave of Absence","FMLA Unpaid","Unpaid Leave of Absence  FMLA Unpaid"]
["Unpaid Leave of Absence","Medical Leave","Unpaid Leave of Absence  Medical Leave"]
["Unpaid Leave of Absence","Military Service","Unpaid Leave of Absence  Military Service"]
["Unpaid Leave of Absence","Parental Leave","Unpaid Leave of Absence  Parental Leave"]
["Unpaid Leave of Absence","Personal Leave","Unpaid Leave of Absence  Personal Leave"]
["Unpaid Leave of Absence","Pregnancy/Parental Lv Unpaid","Unpaid Leave of Absence  Pregnancy/Parental Lv Unpaid"]
["Unpaid Leave of Absence","Union Position Leave","Unpaid Leave of Absence  Union Position Leave"]
["Unpaid Leave of Absence","Workers Comp without Benefits","Unpaid Leave of Absence  Workers Comp without Benefits"]
["Layoff","Disciplinary","Layoff  Disciplinary"]
["Layoff","Lay-off from Job Bank","Layoff  Lay-off from Job Bank"]
["Layoff","Medical","Layoff  Medical"]
["Layoff","Probationary Rel from Job Bank","Layoff  Probationary Rel from Job Bank"]
["Layoff","Regular","Layoff  Regular"]
["Layoff","Seasonal-363,320&49 only",{"$f":"CONCATENATE(A72, \"  \", B72)","v":"Layoff  Seasonal-363,320&49 only"}]
["Long Term Disability with Pay","Duty Disability","Long Term Disability with Pay  Duty Disability"]
["Long Term Disability with Pay","Non-Duty Disability","Long Term Disability with Pay  Non-Duty Disability"]
["Long Term Disability","Duty Disability w/ Pension","Long Term Disability  Duty Disability w/ Pension"]
["Pay Rate Change","ACAI Only-Addl Stp Advancement","Pay Rate Change  ACAI Only-Addl Stp Advancement"]
["Pay Rate Change","CBA Equity Step Movement","Pay Rate Change  CBA Equity Step Movement"]
["Pay Rate Change","Certification Pay (per cntrct)","Pay Rate Change  Certification Pay (per cntrct)"]
["Pay Rate Change","City Step Adjustment","Pay Rate Change  City Step Adjustment"]
["Pay Rate Change","Collective Bargain Agreement","Pay Rate Change  Collective Bargain Agreement"]
["Pay Rate Change","Cost of Living Increase","Pay Rate Change  Cost of Living Increase"]
["Pay Rate Change","End Certification Pay","Pay Rate Change  End Certification Pay"]
["Pay Rate Change","End Merit Pay","Pay Rate Change  End Merit Pay"]
["Pay Rate Change","End Probationary Rate","Pay Rate Change  End Probationary Rate"]
["Pay Rate Change","End Special Agreement","Pay Rate Change  End Special Agreement"]
["Pay Rate Change","FS Cert/Credentials Achieved","Pay Rate Change  FS Cert/Credentials Achieved"]
["Pay Rate Change","Grade Step Demotion","Pay Rate Change  Grade Step Demotion"]
["Pay Rate Change","Grade Step Promotion","Pay Rate Change  Grade Step Promotion"]
["Pay Rate Change","License Achieved","Pay Rate Change  License Achieved"]
["Pay Rate Change","Longevity Pay","Pay Rate Change  Longevity Pay"]
["Pay Rate Change","MN Minimum Wage Increase","Pay Rate Change  MN Minimum Wage Increase"]
["Pay Rate Change","Market Adjustment Rate","Pay Rate Change  Market Adjustment Rate"]
["Pay Rate Change","Merit","Pay Rate Change  Merit"]
["Pay Rate Change","Merit Pay Extended","Pay Rate Change  Merit Pay Extended"]
["Pay Rate Change","Park Step Adjust","Pay Rate Change  Park Step Adjust"]
["Pay Rate Change","Pay Rate Error Adjustment","Pay Rate Change  Pay Rate Error Adjustment"]
["Pay Rate Change","Redline Status","Pay Rate Change  Redline Status"]
["Pay Rate Change","Remove Redline Status","Pay Rate Change  Remove Redline Status"]
["Pay Rate Change","Special Agreement","Pay Rate Change  Special Agreement"]
["Pay Rate Change","Special Assignment Pay","Pay Rate Change  Special Assignment Pay"]
["Pay Rate Change","Special Assignment Pay End","Pay Rate Change  Special Assignment Pay End"]
["Pay Rate Change","Special Wage Adjustment","Pay Rate Change  Special Wage Adjustment"]
["Pay Rate Change","Step Chng Disciplinary Action","Pay Rate Change  Step Chng Disciplinary Action"]
["Pay Rate Change","Step Increase","Pay Rate Change  Step Increase"]
["Pay Rate Change","Step Increase Not Approved","Pay Rate Change  Step Increase Not Approved"]
["Paid Leave of Absence","Administrative Leave with Pay","Paid Leave of Absence  Administrative Leave with Pay"]
["Paid Leave of Absence","Budgetary","Paid Leave of Absence  Budgetary"]
["Paid Leave of Absence","Family and Medical Leave Act","Paid Leave of Absence  Family and Medical Leave Act"]
["Paid Leave of Absence","Investigatory Leave with Pay","Paid Leave of Absence  Investigatory Leave with Pay"]
["Paid Leave of Absence","Medical Leave","Paid Leave of Absence  Medical Leave"]
["Paid Leave of Absence","Military Leave Annual 15 day","Paid Leave of Absence  Military Leave Annual 15 day"]
["Paid Leave of Absence","Paid Parental Leave","Paid Leave of Absence  Paid Parental Leave"]
["Paid Leave of Absence","Parental Leave","Paid Leave of Absence  Parental Leave"]
["Paid Leave of Absence","Pregnancy and Parental Leave","Paid Leave of Absence  Pregnancy and Parental Leave"]
["Paid Leave of Absence","Term/Layoff Pend Vet Appeal","Paid Leave of Absence  Term/Layoff Pend Vet Appeal"]
["Paid Leave of Absence","Workers Comp with Benefits","Paid Leave of Absence  Workers Comp with Benefits"]
["Probation","Com Svc Officer Police Dept","Probation  Com Svc Officer Police Dept"]
["Probation","Probation Extended","Probation  Probation Extended"]
["Completion of Probation","Completed Probation","Completion of Probation  Completed Probation"]
["Promotion","Appointed","Promotion  Appointed"]
["Promotion","Central HR Staffing Process","Promotion  Central HR Staffing Process"]
["Promotion","Prof Credentials Achieved","Promotion  Prof Credentials Achieved"]
["Promotion","Promotional Assignment","Promotion  Promotional Assignment"]
["Promotion","Reclassification Upgrade","Promotion  Reclassification Upgrade"]
["Recall from Suspension/Layoff","From Lay-Off","Recall from Suspension/Layoff  From Lay-Off"]
["Recall from Suspension/Layoff","From Suspension","Recall from Suspension/Layoff  From Suspension"]
["Rehire","Regular","Rehire  Regular"]
["Rehire","Temporary","Rehire  Temporary"]
["Retirement","Duty Disability","Retirement  Duty Disability"]
["Retirement","Non-Duty Disability","Retirement  Non-Duty Disability"]
["Retirement","Regular","Retirement  Regular"]
["Return from Disability","From Long Term Disability","Return from Disability  From Long Term Disability"]
["Return from Disability","From Short Term Disability","Return from Disability  From Short Term Disability"]
["Return from Leave","Return from Paid LOA","Return from Leave  Return from Paid LOA"]
["Return from Leave","Return from Unpaid LOA",{"$f":"CONCATENATE(A135, \"  \", B135)","v":"Return from Leave  Return from Unpaid LOA"}]
["Return from Leave","Return from Workers Comp","Return from Leave  Return from Workers Comp"]
["Short Term Disability","Non-Duty, With Pension","Short Term Disability  Non-Duty, With Pension"]
["Suspension","Disciplinary Suspension No Pay","Suspension  Disciplinary Suspension No Pay"]
["Termination","Abandoned position","Termination  Abandoned position"]
["Termination","Become Self-Employed","Termination  Become Self-Employed"]
["Termination","Death","Termination  Death"]
["Termination","Did Not Pass Background Check","Termination  Did Not Pass Background Check"]
["Termination","Discharged","Termination  Discharged"]
["Termination","Dissatisfied w/Fellow Employee","Termination  Dissatisfied w/Fellow Employee"]
["Termination","Dissatisfied w/Promotion Opps","Termination  Dissatisfied w/Promotion Opps"]
["Termination","Dissatisfied w/Type of Work","Termination  Dissatisfied w/Type of Work"]
["Termination","Dissatisfied w/Work Conditions","Termination  Dissatisfied w/Work Conditions"]
["Termination","Dissatisfied with Hours","Termination  Dissatisfied with Hours"]
["Termination","Dissatisfied with Location","Termination  Dissatisfied with Location"]
["Termination","Dissatisfied with Pay","Termination  Dissatisfied with Pay"]
["Termination","Dissatisfied with Supervision","Termination  Dissatisfied with Supervision"]
["Termination","Duplicate ID for Employee","Termination  Duplicate ID for Employee"]
["Termination","Employer Bankruptcy","Termination  Employer Bankruptcy"]
["Termination","End of Appointment","Termination  End of Appointment"]
["Termination","End of Elected Term","Termination  End of Elected Term"]
["Termination","End of Grant Funding","Termination  End of Grant Funding"]
["Termination","End of Temporary Work","Termination  End of Temporary Work"]
["Termination","Family Reasons","Termination  Family Reasons"]
["Termination","From Job Bank","Termination  From Job Bank"]
["Termination","From Lay-off","Termination  From Lay-off"]
["Termination","Independent Board Dissolved","Termination  Independent Board Dissolved"]
["Termination","Permit End","Termination  Permit End"]
["Termination","Probationary Release","Termination  Probationary Release"]
["Termination","Relocation","Termination  Relocation"]
["Termination","Resignation","Termination  Resignation"]
["Termination","Resignation-Other Position","Termination  Resignation-Other Position"]
["Termination","Resigned in Lieu of Discharge","Termination  Resigned in Lieu of Discharge"]
["Termination","Return to School","Termination  Return to School"]
["Termination","Workers' Compensation Payroll","Termination  Workers' Compensation Payroll"]
["Transfer","Certified to Uncert or Elect","Transfer  Certified to Uncert or Elect"]
["Transfer","Dif Posn Same Job Code","Transfer  Dif Posn Same Job Code"]
["Transfer","Diff Dept,Same Salary Auth","Transfer  Diff Dept,Same Salary Auth"]
["Transfer","Different Division, Same Dept","Transfer  Different Division, Same Dept"]
["Transfer","Different Job Code","Transfer  Different Job Code"]
["Transfer","Different Salary Authority","Transfer  Different Salary Authority"]
["Transfer","From Appointed to Certified","Transfer  From Appointed to Certified"]
["Transfer","From Uncertified to Certified","Transfer  From Uncertified to Certified"]
["Transfer","From Cert/Uncert toAppointed","Transfer  From Cert/Uncert toAppointed"]
["Transfer","Probationary Release","Transfer  Probationary Release"]
["Transfer","Reorganization","Transfer  Reorganization"]
["Transfer","Return frm Bumping Layoff List","Transfer  Return frm Bumping Layoff List"]
["Transfer","Transfer of Title/Same Grade","Transfer  Transfer of Title/Same Grade"]
["Transfer","Transfer to Job Bank Dept","Transfer  Transfer to Job Bank Dept"]

{"sheet":"Departments","index":3,"n_rows":44,"n_cols":1,"rows_kept":44,"cut":false,"hidden":false,"merged":[]}
["Dept Name - ID"]
[]
["311 - 8320000"]
["911 - 8300000"]
["ASSESSOR - 1000000"]
["ATTORNEY - 1400000"]
["BUILDING COMMISSION - 5200000"]
["CAPITAL IMPROVEMENTS 9010000"]
["CITY CLERK - 2600000"]
["CITY COORDINATOR - 8400000"]
["CIVIL RIGHTS - 3000000"]
["COMMUNICATIONS - 8420000"]
["CONVENTION CENTER - 8650000"]
["CPED - 8900000"]
["EMERGENCY MANAGEMENT- 8440000"]
["ESTIMATE & TAXATION - 5000000"]
["Election Judges - 1350000"]
["FINANCE AND PROPERTY SERV - 8200000"]
["FIRE DEPARTMENT - 2800000"]
["GENERAL FUND CONTINGENCY - 1750000"]
["HUMAN RESOURCES - 8150000"]
["INFORMATION TECHNOLOGY - 8800000"]
["INTERGOVERNMENTAL RELATNS - 8410000"]
["Internal Audit - 8430000"]
["Long Term LOA Group - MPLSLTL"]
["MAYOR - 3750000"]
["METP Summer Youth - 8910000"]
["MINNEAPOLIS HEALTH DEPARTMENT - 8600000"]
["Mpls Employees Retirement Fund - MPLSMRF"]
["Neighborhood and Community Rel - 8450000"]
["POLICE DEPARTMENT - 4000000"]
["PW - ADMINISTRATIVE SERVICES - 6500000"]
["PW - CENTRAL STORES - 6400000"]
["PW - FLEET SERVICES - 6750000"]
["PW - SOLID WASTE - 6640000"]
["PW - WATER TREATMENT & DISTR - 6900000"]
["REGULATORY SERVICES - 8350000"]
["SANITARY SEWER - 6310000"]
["STORM WATER - 6300000"]
["TRANS MAINTENANC & REPAIR - 6070000"]
["TRANS PLAN/PROGRAMMING - 6020000"]
["Traffic and Parking Services - 6850000"]
["Trans Engineering and Design - 6000000"]
["YOUTH COORDINATING BOARD 2200000"]

{"sheet":"Company","index":4,"n_rows":4,"n_cols":1,"rows_kept":4,"cut":false,"hidden":false,"merged":[]}
["Company"]
[]
["MPL (City and MBC)"]
["YCB (Youth Coordinating Bd)"]

{"sheet":"Job Codes","index":5,"n_rows":1069,"n_cols":3,"rows_kept":1069,"cut":false,"hidden":false,"merged":[]}
["Job Code","Job Title","Job Code/Job Title"]
[null,null,{"$f":"CONCATENATE(A2, \"  \", B2)","v":"  "}]
["00001C","311 Operations Manager-C",{"$f":"CONCATENATE(A3, \"  \", B3)","v":"00001C  311 Operations Manager-C"}]
["00003C","311 Training Coordinator - C","00003C  311 Training Coordinator - C"]
["00008C","Access and Outreach Speclst-C","00008C  Access and Outreach Speclst-C"]
["00011C","911 Dispatcher - C","00011C  911 Dispatcher - C"]
["00017C","911 Operations Manager - C","00017C  911 Operations Manager - C"]
["00020C","911 Operator-C","00020C  911 Operator-C"]
["00025C","911 Supervisor - C","00025C  911 Supervisor - C"]
["00026C","Senior 911 Supervisor - C","00026C  Senior 911 Supervisor - C"]
["00027C","911 Traning&QualityAssurSpec-C","00027C  911 Traning&QualityAssurSpec-C"]
["00030C","Account Clerk I -C","00030C  Account Clerk I -C"]
["00070C","Account Clerk II -C","00070C  Account Clerk II -C"]
["00170C","Account Maintenance Rep-C","00170C  Account Maintenance Rep-C"]
["00180C","Accountant I -C","00180C  Accountant I -C"]
["00220C","Accountant II -C","00220C  Accountant II -C"]
["00221C","Accountant Il  (Supervisory)-C","00221C  Accountant Il  (Supervisory)-C"]
["00320C","Administrative Analyst I Cf-C","00320C  Administrative Analyst I Cf-C"]
["00330C","Administrative Analyst I -C","00330C  Administrative Analyst I -C"]
["00340C","Administrative Analyst II Cf-C","00340C  Administrative Analyst II Cf-C"]
["00350C","Administrative Analyst II-C","00350C  Administrative Analyst II-C"]
["00356C","Admin Asst to the Director - C","00356C  Admin Asst to the Director - C"]
["00410C","Admin Enforcement Supv - C","00410C  Admin Enforcement Supv - C"]
["00440C","Admin Supv Anml Care&Control-C","00440C  Admin Supv Anml Care&Control-C"]
["00463C","Executive Secr to City Crd-C","00463C  Executive Secr to City Crd-C"]
["00468C","Aide to the Dir RegSrvEmPrep-C","00468C  Aide to the Dir RegSrvEmPrep-C"]
["00469C","Aide to the Finance Officer-C","00469C  Aide to the Finance Officer-C"]
["00475C","Animal Care Technician-C","00475C  Animal Care Technician-C"]
["00480C","Animal Control Warden-C","00480C  Animal Control Warden-C"]
["00481C","Applications Analyst-C","00481C  Applications Analyst-C"]
["00482C","Applications Programmer-C","00482C  Applications Programmer-C"]
["00483C","Applications Programmer/Analys","00483C  Applications Programmer/Analys"]
["00500C","Asphalt Raker-C","00500C  Asphalt Raker-C"]
["00505C","Asphalt Raker Apprentice I-C","00505C  Asphalt Raker Apprentice I-C"]
["00507C","Asphalt Raker Apprentice II-C","00507C  Asphalt Raker Apprentice II-C"]
["00520C","Assessor I-C","00520C  Assessor I-C"]
["00530C","Assessor II-C","00530C  Assessor II-C"]
["00540C","Assessor III-C","00540C  Assessor III-C"]
["00560C","Manager Fire Inspection Srv -C","00560C  Manager Fire Inspection Srv -C"]
["00565C","Associate Contract Adminis - C","00565C  Associate Contract Adminis - C"]
["00567C","Assoc Coord Legal Processes-C","00567C  Assoc Coord Legal Processes-C"]
["00569C","Assoc Transportation Planner-C","00569C  Assoc Transportation Planner-C"]
["00590C","Asst Building Official-C","00590C  Asst Building Official-C"]
["00630C","Asst City Attorney I-C","00630C  Asst City Attorney I-C"]
["00637C","Asst City Attorney II HR/LR-C","00637C  Asst City Attorney II HR/LR-C"]
["00650C","Asst City Attorney II-C","00650C  Asst City Attorney II-C"]
["00670C","Asst City Attorney III-C","00670C  Asst City Attorney III-C"]
["00838C","Asst Manager Animal Care&Cntrl","00838C  Asst Manager Animal Care&Cntrl"]
["00845C","Asst Manager Parking Systems-C","00845C  Asst Manager Parking Systems-C"]
["00850C","Manager Treasury Oper-C","00850C  Manager Treasury Oper-C"]
["00870C","Asst Superintendent, WrPntOp-C","00870C  Asst Superintendent, WrPntOp-C"]
["00945C","Water Meter Operations Spec-C","00945C  Water Meter Operations Spec-C"]
["00950C","Asst Supv Prkg Traf Ctl SupIII","00950C  Asst Supv Prkg Traf Ctl SupIII"]
["00965C","Asst Supv Police Rec Srv-C","00965C  Asst Supv Police Rec Srv-C"]
["00990C","Asst Training Officer Fire-C","00990C  Asst Training Officer Fire-C"]
["01060C","Attendant Impound Lot-C","01060C  Attendant Impound Lot-C"]
["01180C","Automotive Mechanic-C","01180C  Automotive Mechanic-C"]
["01182C","Automotive Mechanic Cap Fund-C","01182C  Automotive Mechanic Cap Fund-C"]
["01265C","Bilingual Crime Prevent Spec-C","01265C  Bilingual Crime Prevent Spec-C"]
["01290C","Bilingual Program Aide-C","01290C  Bilingual Program Aide-C"]
["01333C","CPED Interagency Coordinator-C","01333C  CPED Interagency Coordinator-C"]
["01334C","BIS Interagency Coordinator-C","01334C  BIS Interagency Coordinator-C"]
["01336C","BIS Telecom. Analyst I-C","01336C  BIS Telecom. Analyst I-C"]
["01337C","BIS Telecom Analyst II-C","01337C  BIS Telecom Analyst II-C"]
["01338C","BIS Telecom. Analyst III-C","01338C  BIS Telecom. Analyst III-C"]
["01339C","BIS Project Assistant - C",{"$f":"CONCATENATE(A66, \"  \", B66)","v":"01339C  BIS Project Assistant - C"}]
["01365C","Booking & Administrative Crd-C","01365C  Booking & Administrative Crd-C"]
["01400C","Bricklayer-C","01400C  Bricklayer-C"]
["01441C","Call Center Analyst - C","01441C  Call Center Analyst - C"]
["01442C","Business Analyst III - C","01442C  Business Analyst III - C"]
["01443C","Business Analyst II - C","01443C  Business Analyst II - C"]
["01444C","Business Analyst I - C","01444C  Business Analyst I - C"]
["01446C","Senior Business Analyst-City","01446C  Senior Business Analyst-City"]
["01447C","Building Services Spec I - C","01447C  Building Services Spec I - C"]
["01448C","Building Services Spec II-C","01448C  Building Services Spec II-C"]
["01449C","Building Official - C","01449C  Building Official - C"]
["01451C","Business IntelligenceAnalyst-C","01451C  Business IntelligenceAnalyst-C"]
["01452C","Business App Anlyst I Conf - C","01452C  Business App Anlyst I Conf - C"]
["01453C","Business Applications Anlst I","01453C  Business Applications Anlst I"]
["01454C","Business Application Anlst II","01454C  Business Application Anlst II"]
["01455C","Business Development Lead-C","01455C  Business Development Lead-C"]
["01456C","Business Application Manager-C","01456C  Business Application Manager-C"]
["01457C","Business App Mgr-Supervisory-C","01457C  Business App Mgr-Supervisory-C"]
["01458C","Buyer-C","01458C  Buyer-C"]
["01459C","Business Process&DataAnalyst-C","01459C  Business Process&DataAnalyst-C"]
["01510C","Carpenter-C","01510C  Carpenter-C"]
["01520C","Career Pth & Ind Outrch Spec-C","01520C  Career Pth & Ind Outrch Spec-C"]
["01530C","Case Investigator-C","01530C  Case Investigator-C"]
["01545C","Cash Manager-C","01545C  Cash Manager-C"]
["01556C","Cashier - Ticket Sales - C","01556C  Cashier - Ticket Sales - C"]
["01570C","Cement Finisher Journeyman-C","01570C  Cement Finisher Journeyman-C"]
["01585C","Cement Finisher Apprentice I-C","01585C  Cement Finisher Apprentice I-C"]
["01586C","Cement Finisher Appr II-C","01586C  Cement Finisher Appr II-C"]
["01587C","Cement Finisher Appr III-C","01587C  Cement Finisher Appr III-C"]
["01588C","Cement Finisher Appr IV-C","01588C  Cement Finisher Appr IV-C"]
["01610C","Central Alarm Station Oper-C","01610C  Central Alarm Station Oper-C"]
["01660C","Chemist Wtr Bacteriologst I-C","01660C  Chemist Wtr Bacteriologst I-C"]
["01670C","Chemist Wtr Bacteriologst II-C","01670C  Chemist Wtr Bacteriologst II-C"]
["01680C","Chief Council Committee Coor-C","01680C  Chief Council Committee Coor-C"]
["01720C","Chief Inspct Util Con-C SupIII","01720C  Chief Inspct Util Con-C SupIII"]
["01875C","City Clerks Operations Tech-C","01875C  City Clerks Operations Tech-C"]
["01880C","City Planner -C","01880C  City Planner -C"]
["01890C","Senior Resource Coordinator-C","01890C  Senior Resource Coordinator-C"]
["01950C","Clerical Supervisor-C","01950C  Clerical Supervisor-C"]
["02230C","Guest Services Ambassador - C","02230C  Guest Services Ambassador - C"]
["02232C","Code Compliance Offcr I CIS-C","02232C  Code Compliance Offcr I CIS-C"]
["02233C","Health Inspector I -C","02233C  Health Inspector I -C"]
["02234C","Health Inspector II - C","02234C  Health Inspector II - C"]
["02235C","Commercial Meter Srv Wkr-C","02235C  Commercial Meter Srv Wkr-C"]
["02236C","Code Compliance Specialist-C","02236C  Code Compliance Specialist-C"]
["02260C","Committee Clerk-C","02260C  Committee Clerk-C"]
["02265C","Communication Manager CPED","02265C  Communication Manager CPED"]
["02312C","Community Crime Prev Anlys - C","02312C  Community Crime Prev Anlys - C"]
["02319C","Community Relations Spclst - C","02319C  Community Relations Spclst - C"]
["02350C","Community Service Officer-C","02350C  Community Service Officer-C"]
["02355C","Complaint Investigatn Officr-C","02355C  Complaint Investigatn Officr-C"]
["02374C","Community Specialist - C","02374C  Community Specialist - C"]
["02440C","Concierge Convention Center-C","02440C  Concierge Convention Center-C"]
["02520C","Constr Equip Oper-Oiler B-C","02520C  Constr Equip Oper-Oiler B-C"]
["02526C","PW Service Wrkr II WU Shop-C","02526C  PW Service Wrkr II WU Shop-C"]
["02528C","Const Equip Op Oiler Reserve-C","02528C  Const Equip Op Oiler Reserve-C"]
["02610C","Constr Maint Laborer-C","02610C  Constr Maint Laborer-C"]
["02612C","Constr Maint Labor WU Driver-C","02612C  Constr Maint Labor WU Driver-C"]
["02616C","Constr Maint Labor WU Shop-C","02616C  Constr Maint Labor WU Shop-C"]
["02617C","PW Service Worker I Reserve-C","02617C  PW Service Worker I Reserve-C"]
["02618C","Constr Mgmt Coordinator - PW","02618C  Constr Mgmt Coordinator - PW"]
["02625C","Contract Administrator - C","02625C  Contract Administrator - C"]
["02627C","Contract Compliance Officer-C","02627C  Contract Compliance Officer-C"]
["02628C","Contract Cmplnce Officer II-C","02628C  Contract Cmplnce Officer II-C"]
["02630C","Conv Ctr Ops Maint Specialst-C",{"$f":"CONCATENATE(A130, \"  \", B130)","v":"02630C  Conv Ctr Ops Maint Specialst-C"}]
["02657C","Coord Grants & Community Eng-C","02657C  Coord Grants & Community Eng-C"]
["02672C","Coord Legal Processes-C","02672C  Coord Legal Processes-C"]
["02674C","Coord MPD Health & Wellness -C","02674C  Coord MPD Health & Wellness -C"]
["02678C","Coord Plans and Scheduling-C","02678C  Coord Plans and Scheduling-C"]
["02685C","Coord Volunteers Comm Ptrshp-C","02685C  Coord Volunteers Comm Ptrshp-C"]
["02720C","Council Committee Coord-C","02720C  Council Committee Coord-C"]
["02740C","Council Information Spec - C","02740C  Council Information Spec - C"]
["02758C","Crime Analyst I - C","02758C  Crime Analyst I - C"]
["02759C","Crime Analyst II - C","02759C  Crime Analyst II - C"]
["02775C","Crime Prevention Specialist-C","02775C  Crime Prevention Specialist-C"]
["02845C","Customer Service Agent I-C","02845C  Customer Service Agent I-C"]
["02846C","Customer Service Agent II-C","02846C  Customer Service Agent II-C"]
["02850C","Customer Service Rep I-C","02850C  Customer Service Rep I-C"]
["02860C","Customer Service Rep II-C","02860C  Customer Service Rep II-C"]
["02870C","Database Engineer-C","02870C  Database Engineer-C"]
["02945C","Data Scientist-C","02945C  Data Scientist-C"]
["02960C","Delivery Worker-C","02960C  Delivery Worker-C"]
["03037C","Development Coordinator I - C","03037C  Development Coordinator I - C"]
["03038C","Development Coordinator II -C","03038C  Development Coordinator II -C"]
["03050C","Deputy Fire Chief-C","03050C  Deputy Fire Chief-C"]
["03051C","Deputy Fire Chief 80 hrs-C","03051C  Deputy Fire Chief 80 hrs-C"]
["03057C","Development Coordinator III -C","03057C  Development Coordinator III -C"]
["03400C","Dir Mpls Emplymt & Trng Prg-C","03400C  Dir Mpls Emplymt & Trng Prg-C"]
["03580C","District Fire Chief-C","03580C  District Fire Chief-C"]
["03581C","District Fire Chief 80 hours-C","03581C  District Fire Chief 80 hours-C"]
["03587C","District Lead, Animal Cntrl-C","03587C  District Lead, Animal Cntrl-C"]
["03600C","District Street Supv I-C SupIV","03600C  District Street Supv I-C SupIV"]
["03610C","District Street Supv II-C SupV","03610C  District Street Supv II-C SupV"]
["03620C","District Street Supv III - C","03620C  District Street Supv III - C"]
["03621C","Supervisor Health Insp-C SupIV","03621C  Supervisor Health Insp-C SupIV"]
["03623C","District Supv Insp Cns-C SupIV","03623C  District Supv Insp Cns-C SupIV"]
["03625C","District Supv Insp Hsg-C SupIV","03625C  District Supv Insp Hsg-C SupIV"]
["03626C","District Supv Lic & Cons Sr-C","03626C  District Supv Lic & Cons Sr-C"]
["03627C","Document Solution Ct Tech I-C","03627C  Document Solution Ct Tech I-C"]
["03628C","Document Solution Ct Tech II-C","03628C  Document Solution Ct Tech II-C"]
["03800C","Election Helper-C","03800C  Election Helper-C"]
["03835C","Election Specialist - C","03835C  Election Specialist - C"]
["03860C","Electrician-C","03860C  Electrician-C"]
["03890C","Electronic Technician-C","03890C  Electronic Technician-C"]
["03943C","Emergency Management Asst - C","03943C  Emergency Management Asst - C"]
["03947C","Emer Mgmt Grant & Train Spec-C","03947C  Emer Mgmt Grant & Train Spec-C"]
["03948C","Emer Mgmt Operations Admin - C","03948C  Emer Mgmt Operations Admin - C"]
["03949C","Emer Mgmt Planning Admin - C","03949C  Emer Mgmt Planning Admin - C"]
["03957C","Emergency Mgmt Training Mgr-C","03957C  Emergency Mgmt Training Mgr-C"]
["03958C","Energy Manager - C","03958C  Energy Manager - C"]
["03959C","Employment Equity Analyst - C","03959C  Employment Equity Analyst - C"]
["03960C","Engineer-C","03960C  Engineer-C"]
["03980C","Professional Engineer-C","03980C  Professional Engineer-C"]
["03990C","Senior Professional Engineer-C","03990C  Senior Professional Engineer-C"]
["04000C","Principal Professional Engr-C","04000C  Principal Professional Engr-C"]
["04010C","Engineering Tech I Seasonal-C","04010C  Engineering Tech I Seasonal-C"]
["04022C","Engineering Technician I - C","04022C  Engineering Technician I - C"]
["04024C","Engineering Tech I Eng Lab-C","04024C  Engineering Tech I Eng Lab-C"]
["04031C","Engineering Technician Asst-C","04031C  Engineering Technician Asst-C"]
["04032C","Engineering Technician II - C","04032C  Engineering Technician II - C"]
["04034C","Engineering Tech II Eng Lab-C","04034C  Engineering Tech II Eng Lab-C"]
["04042C","Engineering Technician III - C","04042C  Engineering Technician III - C"]
["04044C","Engineering Tech III Graphic-C","04044C  Engineering Tech III Graphic-C"]
["04048C","Engineering Tech III Survey-C","04048C  Engineering Tech III Survey-C"]
["04063C","Engineering ApplicationAnaly-C","04063C  Engineering ApplicationAnaly-C"]
["04066C","Engineering Applications Mgr-C","04066C  Engineering Applications Mgr-C"]
["04103C","Enterprise Contract Adminstr-C","04103C  Enterprise Contract Adminstr-C"]
["04106C","Environmental Engineer-C","04106C  Environmental Engineer-C"]
["04107C","Enterprise Coordinator,WFD-IPI",{"$f":"CONCATENATE(A194, \"  \", B194)","v":"04107C  Enterprise Coordinator,WFD-IPI"}]
["04108C","Enterprise Coordinator,Asp-IPI","04108C  Enterprise Coordinator,Asp-IPI"]
["04110C","Sr PHR Epidemiologist-C","04110C  Sr PHR Epidemiologist-C"]
["04111C","Enterprise Finance Special-C","04111C  Enterprise Finance Special-C"]
["04112C","Enterprise Procurement Spec-C","04112C  Enterprise Procurement Spec-C"]
["04113C","Env Health Community Liaison-C","04113C  Env Health Community Liaison-C"]
["04150C","Equipment Dispatcher-C Sup II","04150C  Equipment Dispatcher-C Sup II"]
["04160C","Equipment Repair Coordinator-C","04160C  Equipment Repair Coordinator-C"]
["04170C","Equipment Service Worker-C","04170C  Equipment Service Worker-C"]
["04185C","Building Mtc Worker Conv Ctr-C","04185C  Building Mtc Worker Conv Ctr-C"]
["04187C","Equity & Inclusion Prgrm Crd-C","04187C  Equity & Inclusion Prgrm Crd-C"]
["04230C","Event Coordinator-C","04230C  Event Coordinator-C"]
["04232C","Evidence Technician-C","04232C  Evidence Technician-C"]
["04239C","Executive Manager of Arts - C","04239C  Executive Manager of Arts - C"]
["04260C","Exhibitor Service Specialist I","04260C  Exhibitor Service Specialist I"]
["04261C","Exhibitor Service Spec II-C","04261C  Exhibitor Service Spec II-C"]
["04295C","Facility Manager-C","04295C  Facility Manager-C"]
["04299C","Facility Supervisor  Prp Srv-C","04299C  Facility Supervisor  Prp Srv-C"]
["04303C","Public Health Spec 1 -C","04303C  Public Health Spec 1 -C"]
["04304C","Family Support Spec I EmpTrn-C","04304C  Family Support Spec I EmpTrn-C"]
["04305C","Family Support Spec 2 EmTrn -C","04305C  Family Support Spec 2 EmTrn -C"]
["04306C","Family Support Spec 3 EmTrn -C","04306C  Family Support Spec 3 EmTrn -C"]
["04308C","Field Supv Animal Care & Cnt-C","04308C  Field Supv Animal Care & Cnt-C"]
["04309C","Senior Health Inspector-C","04309C  Senior Health Inspector-C"]
["04310C","Public Health Specialist II -C","04310C  Public Health Specialist II -C"]
["04311C","Sr Public Health Specialist-C","04311C  Sr Public Health Specialist-C"]
["04313C","Sr Public Health Special YD-C","04313C  Sr Public Health Special YD-C"]
["04314C","Public Health Spec 2 E/Prep-C","04314C  Public Health Spec 2 E/Prep-C"]
["04315C","Field Supv CodeComplianceTrf-C","04315C  Field Supv CodeComplianceTrf-C"]
["04330C","Finance Administrator RegSrv-C","04330C  Finance Administrator RegSrv-C"]
["04348C","Sr Collaboration Architect-C","04348C  Sr Collaboration Architect-C"]
["04350C","Financial Analyst-C","04350C  Financial Analyst-C"]
["04351C","Senior Financial Analyst-C","04351C  Senior Financial Analyst-C"]
["04354C","Sr Info Tech Program Mgr - C","04354C  Sr Info Tech Program Mgr - C"]
["04370C","Fire Captain 54.6 hrs/wk -C","04370C  Fire Captain 54.6 hrs/wk -C"]
["04371C","Fire Captain 40 hrs/wk -C","04371C  Fire Captain 40 hrs/wk -C"]
["04382C","Fire Inspections Coordinator-C","04382C  Fire Inspections Coordinator-C"]
["04384C","Fire Inspections Speclst I-C","04384C  Fire Inspections Speclst I-C"]
["04386C","Fire Inspections Speclst II-C","04386C  Fire Inspections Speclst II-C"]
["04388C","Fire Inspector I-C","04388C  Fire Inspector I-C"]
["04389C","Fire Inspector II-C","04389C  Fire Inspector II-C"]
["04390C","Fire Inspector III-C","04390C  Fire Inspector III-C"]
["04400C","Fire Investigator 54.6 hr/wkC","04400C  Fire Investigator 54.6 hr/wkC"]
["04401C","Fire Investigator 40 hrs/wk -C","04401C  Fire Investigator 40 hrs/wk -C"]
["04420C","Fire Motor Operator 54.6 hr/wC","04420C  Fire Motor Operator 54.6 hr/wC"]
["04421C","Fire Motor Operator 80 hrs-C","04421C  Fire Motor Operator 80 hrs-C"]
["04427C","Fire Plan Examiner - C","04427C  Fire Plan Examiner - C"]
["04430C","Fire Protection Spec Inspctr-C","04430C  Fire Protection Spec Inspctr-C"]
["04435C","Fire Staff Captain 40 hr wk-C","04435C  Fire Staff Captain 40 hr wk-C"]
["04436C","Fire Staff Captain 54.6 Hrs-C","04436C  Fire Staff Captain 54.6 Hrs-C"]
["04440C","Firefighter Cadet-C","04440C  Firefighter Cadet-C"]
["04450C","Firefighter 54.6 hrs/wk -C","04450C  Firefighter 54.6 hrs/wk -C"]
["04451C","Firefighter 40 Hrs/Wk -C","04451C  Firefighter 40 Hrs/Wk -C"]
["04452C","Firefighter Bell Curve -C","04452C  Firefighter Bell Curve -C"]
["04470C","Fleet Manager-C","04470C  Fleet Manager-C"]
["04471C","Fleet Srv Equipment  Supv - C","04471C  Fleet Srv Equipment  Supv - C"]
["04472C","Fleet Services Training Crd -C","04472C  Fleet Services Training Crd -C"]
["04520C","Foreman Auto Mechanic-C","04520C  Foreman Auto Mechanic-C"]
["04530C","Foreman Bricklayer-C","04530C  Foreman Bricklayer-C"]
["04540C","Foreman Bridge Maintenance-C","04540C  Foreman Bridge Maintenance-C"]
["04560C","Foreman Carpenter-C","04560C  Foreman Carpenter-C"]
["04585C","Foreman Constr/Mtc Grounds-C","04585C  Foreman Constr/Mtc Grounds-C"]
["04590C","Foreman Constrctn/Mntnc Trns-C","04590C  Foreman Constrctn/Mntnc Trns-C"]
["04595C","Foreman Constrctn/Mntnc Watr-C","04595C  Foreman Constrctn/Mntnc Watr-C"]
["04600C","Foreman Electrician-C",{"$f":"CONCATENATE(A258, \"  \", B258)","v":"04600C  Foreman Electrician-C"}]
["04605C","Foreman Electrician Master-C","04605C  Foreman Electrician Master-C"]
["04680C","Foreman Iron Worker-C","04680C  Foreman Iron Worker-C"]
["04685C","Suprv Custodial Srvs -C Sup I","04685C  Suprv Custodial Srvs -C Sup I"]
["04760C","Foreman Painter-C","04760C  Foreman Painter-C"]
["04800C","Foreman Parking Meter Svc-C","04800C  Foreman Parking Meter Svc-C"]
["04810C","Foreman Paving Construction-C","04810C  Foreman Paving Construction-C"]
["04820C","Foreman Paving Prods Plant-C","04820C  Foreman Paving Prods Plant-C"]
["04830C","Foreman Pipefitter-C","04830C  Foreman Pipefitter-C"]
["04832C","Foreman Pipefitter Instmntn-C","04832C  Foreman Pipefitter Instmntn-C"]
["04840C","Foreman Plumber-C","04840C  Foreman Plumber-C"]
["04850C","Foreman Plumber Master I/Chg-C","04850C  Foreman Plumber Master I/Chg-C"]
["04860C","Foreman Plumber-Welder-C","04860C  Foreman Plumber-Welder-C"]
["04890C","Foreman Ramp Repr & Restor-C","04890C  Foreman Ramp Repr & Restor-C"]
["04910C","Foreman Sewer Construction-C","04910C  Foreman Sewer Construction-C"]
["04915C","Foreman Sewer Construct/Mntc-C","04915C  Foreman Sewer Construct/Mntc-C"]
["04920C","Foreman Sewer Maintenance-C","04920C  Foreman Sewer Maintenance-C"]
["04940C","Foreman Sheet Metal-C","04940C  Foreman Sheet Metal-C"]
["04950C","Foreman Shp Water Dept SupII","04950C  Foreman Shp Water Dept SupII"]
["04960C","Foreman Solid Waste-Recyclng-C","04960C  Foreman Solid Waste-Recyclng-C"]
["04970C","Foreman Statnry Engrs-C SupIII","04970C  Foreman Statnry Engrs-C SupIII"]
["04980C","Foreman Street Maint & Repr -C","04980C  Foreman Street Maint & Repr -C"]
["05010C","Foreman Traffic Painting-C","05010C  Foreman Traffic Painting-C"]
["05020C","Foreman Water Main Constr-C","05020C  Foreman Water Main Constr-C"]
["05030C","Foreman Water Svc Maint-C","05030C  Foreman Water Svc Maint-C"]
["05035C","Forensic Photography Tech - C","05035C  Forensic Photography Tech - C"]
["05040C","Forensic Scientist I-C","05040C  Forensic Scientist I-C"]
["05050C","Forensic Scientist II-C","05050C  Forensic Scientist II-C"]
["05062C","Forensic Technician - C","05062C  Forensic Technician - C"]
["05120C","Gen Foreman Bridge Mn Rpr-C SV","05120C  Gen Foreman Bridge Mn Rpr-C SV"]
["05140C","Gen Foreman Electrician-C","05140C  Gen Foreman Electrician-C"]
["05180C","Gen Foreman Pavng Const-C SupV","05180C  Gen Foreman Pavng Const-C SupV"]
["05200C","Gen Foreman Plnt Mnt/NC-C SupV","05200C  Gen Foreman Plnt Mnt/NC-C SupV"]
["05220C","Gen Foreman Sewer Const-C SupV","05220C  Gen Foreman Sewer Const-C SupV"]
["05235C","Gen Foreman Sol Wst/Recyc-C SV","05235C  Gen Foreman Sol Wst/Recyc-C SV"]
["05250C","Gen Foreman Wtr Svc Mnt-C SupV","05250C  Gen Foreman Wtr Svc Mnt-C SupV"]
["05260C","GIS Technician - C","05260C  GIS Technician - C"]
["05261C","GIS Specialist I - C","05261C  GIS Specialist I - C"]
["05262C","GIS Specialist II - C","05262C  GIS Specialist II - C"]
["05263C","GIS Analyst - C","05263C  GIS Analyst - C"]
["05267C","Senior GIS Analyst - C","05267C  Senior GIS Analyst - C"]
["05277C","Senior Graphic Designer - C","05277C  Senior Graphic Designer - C"]
["05330C","Graphic Designer I-C","05330C  Graphic Designer I-C"]
["05340C","Graphic Designer II-C","05340C  Graphic Designer II-C"]
["05355C","Grounds Worker Conv Ctr-C","05355C  Grounds Worker Conv Ctr-C"]
["05403C","Health Program Manager - C","05403C  Health Program Manager - C"]
["05404C","Homeowner Nav Program Mgr-C","05404C  Homeowner Nav Program Mgr-C"]
["05412C","HR Associate-C","05412C  HR Associate-C"]
["05415C","HR Associate Consultant Supv-C","05415C  HR Associate Consultant Supv-C"]
["05416C","HR Associate Consultant-C","05416C  HR Associate Consultant-C"]
["05418C","HR Consultant-C","05418C  HR Consultant-C"]
["05419C","HR Consultant, Confidential-C","05419C  HR Consultant, Confidential-C"]
["05420C","Human Resources Generalist-C","05420C  Human Resources Generalist-C"]
["05421C","HR Lead Investigator-C","05421C  HR Lead Investigator-C"]
["05426C","HR Senior Associate-C","05426C  HR Senior Associate-C"]
["05428C","HR Senior Consultant-C","05428C  HR Senior Consultant-C"]
["05463C","Innovation Program Manager-C","05463C  Innovation Program Manager-C"]
["05464C","InnovationTeamPlannerAnalyst-C","05464C  InnovationTeamPlannerAnalyst-C"]
["05466C","Inspector Board and Lodging-C","05466C  Inspector Board and Lodging-C"]
["05470C","Bldg Inspector Building-C","05470C  Bldg Inspector Building-C"]
["05480C","Inspector Electrical-C","05480C  Inspector Electrical-C"]
["05484C","Inspector Electrical b-C","05484C  Inspector Electrical b-C"]
["05485C","Inspector Electrical c-C","05485C  Inspector Electrical c-C"]
["05490C","Bldg Inspector Elevator-C","05490C  Bldg Inspector Elevator-C"]
["05500C","Inspector Environmental I-C",{"$f":"CONCATENATE(A322, \"  \", B322)","v":"05500C  Inspector Environmental I-C"}]
["05510C","Inspector Environmental II-C","05510C  Inspector Environmental II-C"]
["05560C","Bldg Inspector Pipe Trades-C","05560C  Bldg Inspector Pipe Trades-C"]
["05570C","Inspector Housing I-C","05570C  Inspector Housing I-C"]
["05580C","Inspector Housing II-C","05580C  Inspector Housing II-C"]
["05590C","Inspector License-Cons Svcs-C","05590C  Inspector License-Cons Svcs-C"]
["05610C","Bldg Inspector Plumbing-C","05610C  Bldg Inspector Plumbing-C"]
["05665C","Inspector Utilty Connections-C","05665C  Inspector Utilty Connections-C"]
["05670C","Bldg Insp Wrm Air Htg/AC/Vnt-C","05670C  Bldg Insp Wrm Air Htg/AC/Vnt-C"]
["05690C","Inspector Zoning II-C","05690C  Inspector Zoning II-C"]
["05743C","Intelligence Analyst - C","05743C  Intelligence Analyst - C"]
["05755C","Investment Compliance Admin-C","05755C  Investment Compliance Admin-C"]
["05760C","Iron Worker-C","05760C  Iron Worker-C"]
["05767C","IT Security Engineer-C","05767C  IT Security Engineer-C"]
["05850C","Custodian Property Services -C","05850C  Custodian Property Services -C"]
["05910C","Laboratory Tech Seasonal-C","05910C  Laboratory Tech Seasonal-C"]
["05920C","Laboratory Technician-C","05920C  Laboratory Technician-C"]
["05940C","Lacquer & Varnish Mach Oper-C","05940C  Lacquer & Varnish Mach Oper-C"]
["05952C","Lead CodeCompliance Spec - trf","05952C  Lead CodeCompliance Spec - trf"]
["05955C","Complaint Invest Officer  II-C","05955C  Complaint Invest Officer  II-C"]
["05959C","Lead Bldg Inspector Elevator-C","05959C  Lead Bldg Inspector Elevator-C"]
["05960C","Lead Bldg Inspector Building-C","05960C  Lead Bldg Inspector Building-C"]
["05970C","Lead Inspector Electrical-C","05970C  Lead Inspector Electrical-C"]
["05980C","Lead Inspctr Environ-C SupIII","05980C  Lead Inspctr Environ-C SupIII"]
["05985C","Lead Inspector Housing-C","05985C  Lead Inspector Housing-C"]
["05990C","Lead Bld Inspector Pipe Trds-C","05990C  Lead Bld Inspector Pipe Trds-C"]
["05995C","Lead Inspector Lic & Con Srv-C","05995C  Lead Inspector Lic & Con Srv-C"]
["06000C","Lead Bldg Inspector Plumbing-C","06000C  Lead Bldg Inspector Plumbing-C"]
["06005C","Lead Inspector Problem Prpty-C","06005C  Lead Inspector Problem Prpty-C"]
["06010C","Lead Bldg Inspector WAH/AC/V-C","06010C  Lead Bldg Inspector WAH/AC/V-C"]
["06030C","Lead Pipelayer I Pavng Const-C","06030C  Lead Pipelayer I Pavng Const-C"]
["06035C","Lead Pipelayer I,  Appr I-C","06035C  Lead Pipelayer I,  Appr I-C"]
["06037C","Lead Pipelayer I, Appr II-C","06037C  Lead Pipelayer I, Appr II-C"]
["06050C","Lead Pipelayer II-C","06050C  Lead Pipelayer II-C"]
["06056C","Lead Pipelayer II, Appr I-C","06056C  Lead Pipelayer II, Appr I-C"]
["06057C","Lead Pipelayer II, Appr II-C","06057C  Lead Pipelayer II, Appr II-C"]
["06058C","Lead Pipelayer II, Appr III-C","06058C  Lead Pipelayer II, Appr III-C"]
["06059C","Legal Analyst Police Cnd Rv-C","06059C  Legal Analyst Police Cnd Rv-C"]
["06063C","Leadership & Change Manager-C","06063C  Leadership & Change Manager-C"]
["06066C","Lead Pipelayer III-C","06066C  Lead Pipelayer III-C"]
["06067C","Lead Pipelayer III, Appr I-C","06067C  Lead Pipelayer III, Appr I-C"]
["06068C","Lead Pipelayer III, Appr II-C","06068C  Lead Pipelayer III, Appr II-C"]
["06069C","Lead Pipelayer III, Appr III-C","06069C  Lead Pipelayer III, Appr III-C"]
["06070C","Legal Secretary-C","06070C  Legal Secretary-C"]
["06080C","Legal Support Specialist - C","06080C  Legal Support Specialist - C"]
["06150C","Liability Investigator-C","06150C  Liability Investigator-C"]
["06260C","Neighborhood Support Spec-C","06260C  Neighborhood Support Spec-C"]
["06400C","Loss Control Coordinator-C","06400C  Loss Control Coordinator-C"]
["06460C","Machinist-C","06460C  Machinist-C"]
["06462C","Maintenance Crew Ldr Bridge-C","06462C  Maintenance Crew Ldr Bridge-C"]
["06464C","Maintenance Crew Ldr Sewer-C","06464C  Maintenance Crew Ldr Sewer-C"]
["06465C","Maintenance Crew Ldr Sol Wst-C","06465C  Maintenance Crew Ldr Sol Wst-C"]
["06466C","Maintenance Crew Ldr Streets-C","06466C  Maintenance Crew Ldr Streets-C"]
["06468C","Maintenance Crew Ldr Traffic-C","06468C  Maintenance Crew Ldr Traffic-C"]
["06478C","Management Analyst-C","06478C  Management Analyst-C"]
["06500C","Management Analyst II -C","06500C  Management Analyst II -C"]
["06510C","Manager Accounting-C","06510C  Manager Accounting-C"]
["06514C","Manager Accounts Payable - C","06514C  Manager Accounts Payable - C"]
["06515C","Manager Accounts Receivable-C","06515C  Manager Accounts Receivable-C"]
["06520C","Manager Admin City Attys Ofc-C","06520C  Manager Admin City Attys Ofc-C"]
["06523C","Manager Admin & Data Quality-C","06523C  Manager Admin & Data Quality-C"]
["06542C","Manager Administrative Srvcs-C","06542C  Manager Administrative Srvcs-C"]
["06560C","Manager Assessment Services-C","06560C  Manager Assessment Services-C"]
["06583C","Manager Business Analysis - C","06583C  Manager Business Analysis - C"]
["06590C","Manager Business Licensing-C",{"$f":"CONCATENATE(A386, \"  \", B386)","v":"06590C  Manager Business Licensing-C"}]
["06608C","Mgr Stores & Central Requ - C","06608C  Mgr Stores & Central Requ - C"]
["06637C","Manager Crime Lab - C","06637C  Manager Crime Lab - C"]
["06638C","Manager Community Engagement-C","06638C  Manager Community Engagement-C"]
["06639C","Manager, Continuous Improve-C","06639C  Manager, Continuous Improve-C"]
["06641C","Manager Construction Inspect-C","06641C  Manager Construction Inspect-C"]
["06643C","Manager Development Coord-C","06643C  Manager Development Coord-C"]
["06644C","Manager Development Finance-C","06644C  Manager Development Finance-C"]
["06645C","Manager Distr Insp Cnst Svcs-C","06645C  Manager Distr Insp Cnst Svcs-C"]
["06657C","Manager Environmental Initv -C","06657C  Manager Environmental Initv -C"]
["06670C","Manager Environmental Prgs-C","06670C  Manager Environmental Prgs-C"]
["06675C","Manager Environmental Srvs-C","06675C  Manager Environmental Srvs-C"]
["06685C","Mgr Field Opr Housing Insp - C","06685C  Mgr Field Opr Housing Insp - C"]
["06708C","Manager Equity and Inclusion-C","06708C  Manager Equity and Inclusion-C"]
["06710C","Manager Finance-C","06710C  Manager Finance-C"]
["06732C","Mgr FinancialAnalysis&Syst-C","06732C  Mgr FinancialAnalysis&Syst-C"]
["06738C","Mgr Hazardous Material Insps-C","06738C  Mgr Hazardous Material Insps-C"]
["06744C","Manager Healthy Start-C","06744C  Manager Healthy Start-C"]
["06785C","Manager Business Inform Serv-C","06785C  Manager Business Inform Serv-C"]
["06803C","Manager Inventory Control - C","06803C  Manager Inventory Control - C"]
["06815C","Assistant Mgr, Bsn Licensing-C","06815C  Assistant Mgr, Bsn Licensing-C"]
["06825C","Manager MPD Intellectual Prpty","06825C  Manager MPD Intellectual Prpty"]
["06830C","Mgr MPLS Development Review-C","06830C  Mgr MPLS Development Review-C"]
["06835C","Manager MPLS Workfrc Dev Prg-C","06835C  Manager MPLS Workfrc Dev Prg-C"]
["06839C","Manager Neighborhood Support","06839C  Manager Neighborhood Support"]
["06846C","Mgr Persnl, Fnce Tech&Admin-C","06846C  Mgr Persnl, Fnce Tech&Admin-C"]
["06850C","Manager Parking Ramps Lots-C","06850C  Manager Parking Ramps Lots-C"]
["06917C","Manager Problem Properties-C","06917C  Manager Problem Properties-C"]
["06919C","Manager Public Hlth Emr Resp-C","06919C  Manager Public Hlth Emr Resp-C"]
["06931C","Mgr Radio Comm & Electronics-C","06931C  Mgr Radio Comm & Electronics-C"]
["06934C","Manager Resource Cordntr - C","06934C  Manager Resource Cordntr - C"]
["06935C","Manager Safety Programs-C","06935C  Manager Safety Programs-C"]
["06938C","Manager School Health Svcs-C","06938C  Manager School Health Svcs-C"]
["06940C","Manager Small Busns Ent Prg-C","06940C  Manager Small Busns Ent Prg-C"]
["06963C","Mgr Special Proj & Busns Spt-C","06963C  Mgr Special Proj & Busns Spt-C"]
["06965C","Manager Special Prj & Research","06965C  Manager Special Prj & Research"]
["06999C","Mgr 911 Trng&Qlty Assurance-C","06999C  Mgr 911 Trng&Qlty Assurance-C"]
["07020C","Manager Utilities Billing-C","07020C  Manager Utilities Billing-C"]
["07022C","Manager Video Services-C","07022C  Manager Video Services-C"]
["07050C","Mayors Office Associate-C","07050C  Mayors Office Associate-C"]
["07085C","Media Relations Manager-C","07085C  Media Relations Manager-C"]
["07089C","Medical Assistant-C","07089C  Medical Assistant-C"]
["07099C","Medical Processes Coord-C","07099C  Medical Processes Coord-C"]
["07115C","Metal Fabrication & Wldng Sp-C","07115C  Metal Fabrication & Wldng Sp-C"]
["07162C","MPD Public Information Spec-C","07162C  MPD Public Information Spec-C"]
["07164C","MFH Finance Specialist - C","07164C  MFH Finance Specialist - C"]
["07165C","MFH Loan Prtfo Specialist - C","07165C  MFH Loan Prtfo Specialist - C"]
["07200C","Native Amer Communty Special-C","07200C  Native Amer Communty Special-C"]
["07228C","Network Infrastructure Anlyt-C","07228C  Network Infrastructure Anlyt-C"]
["07250C","Nurse PractitionerPhys Asst-C","07250C  Nurse PractitionerPhys Asst-C"]
["07281C","Office Support Specialist I-C","07281C  Office Support Specialist I-C"]
["07282C","Office Support Speclst ICf-C","07282C  Office Support Speclst ICf-C"]
["07284C","Office Support Specialst II-C","07284C  Office Support Specialst II-C"]
["07285C","Office Support Specialst III-C","07285C  Office Support Specialst III-C"]
["07286C","Office Support Speclst IIICf-C","07286C  Office Support Speclst IIICf-C"]
["07300C","Operating Maint Engineer-C","07300C  Operating Maint Engineer-C"]
["07350C","Painter-C","07350C  Painter-C"]
["07370C","Paralegal-C","07370C  Paralegal-C"]
["07375C","Paralegal Confidential-C","07375C  Paralegal Confidential-C"]
["07440C","Parking Meter Service Worker-C","07440C  Parking Meter Service Worker-C"]
["07450C","Parking Systems Analyst-C","07450C  Parking Systems Analyst-C"]
["07455C","Parking System Manger - C","07455C  Parking System Manger - C"]
["07770C","Pipefitter Instrumentation-C","07770C  Pipefitter Instrumentation-C"]
["07780C","Pipefitter-C","07780C  Pipefitter-C"]
["07825C","Plan Examiner I -C",{"$f":"CONCATENATE(A450, \"  \", B450)","v":"07825C  Plan Examiner I -C"}]
["07880C","Plan Examiner II Architect-C","07880C  Plan Examiner II Architect-C"]
["07890C","Plan Examiner II Engineer-C","07890C  Plan Examiner II Engineer-C"]
["07940C","Plant Service Worker-C","07940C  Plant Service Worker-C"]
["08000C","Plumber Helper (Temporary)-C","08000C  Plumber Helper (Temporary)-C"]
["08010C","Plumber Welder-C","08010C  Plumber Welder-C"]
["08030C","Plumber-C","08030C  Plumber-C"]
["08080C","Police Cadet-C","08080C  Police Cadet-C"]
["08130C","Police Conduct Committe Clk-C","08130C  Police Conduct Committe Clk-C"]
["08141C","Police Equipment Specialist-C","08141C  Police Equipment Specialist-C"]
["08150C","Police Lieutenant-C","08150C  Police Lieutenant-C"]
["08170C","Police Officer-C","08170C  Police Officer-C"]
["08210C","Police Sergeant-C","08210C  Police Sergeant-C"]
["08240C","Police Support Technician II-C","08240C  Police Support Technician II-C"]
["08241C","Police Support Technician I-C","08241C  Police Support Technician I-C"]
["08282C","Principal Appraiser - C","08282C  Principal Appraiser - C"]
["08285C","Principal City Planner-C","08285C  Principal City Planner-C"]
["08289C","Principal Urban Designer - C","08289C  Principal Urban Designer - C"]
["08296C","Problem Propts Oprs Analyst-C","08296C  Problem Propts Oprs Analyst-C"]
["08310C","Production Technician I-C","08310C  Production Technician I-C"]
["08311C","Production Technician II-C","08311C  Production Technician II-C"]
["08340C","Program Aide II-C","08340C  Program Aide II-C"]
["08350C","Program Assistant, Non-Supv-C","08350C  Program Assistant, Non-Supv-C"]
["08360C","Program Assistant-C","08360C  Program Assistant-C"]
["08375C","Program Development Coord-C","08375C  Program Development Coord-C"]
["08415C","Program Specialist Sr Cmnty-C","08415C  Program Specialist Sr Cmnty-C"]
["08430C","Project Coordinator-C","08430C  Project Coordinator-C"]
["08433C","Project Coordinator (Supv) - C","08433C  Project Coordinator (Supv) - C"]
["08440C","Project Manager-C","08440C  Project Manager-C"]
["08443C","Project Manager (BIS)-C","08443C  Project Manager (BIS)-C"]
["08445C","Property Services Proj Coord-C","08445C  Property Services Proj Coord-C"]
["08447C","Public Arts Administrator -C","08447C  Public Arts Administrator -C"]
["08449C","Pub Wrks Financial Analyst - C","08449C  Pub Wrks Financial Analyst - C"]
["08487C","Public Health Mntl Hlth Cnsl 3","08487C  Public Health Mntl Hlth Cnsl 3"]
["08488C","Public Health Mntl Hlth Cnsl I","08488C  Public Health Mntl Hlth Cnsl I"]
["08489C","Public Health Mntl Hlth Cnsl 2","08489C  Public Health Mntl Hlth Cnsl 2"]
["08490C","Public Health Nurse I-C","08490C  Public Health Nurse I-C"]
["08550C","Communications Specialist-C","08550C  Communications Specialist-C"]
["08560C","Public Information Officer-C","08560C  Public Information Officer-C"]
["08563C","Public Wks Interagency Coord-C","08563C  Public Wks Interagency Coord-C"]
["08564C","Public Works Service Wkr Trn-C","08564C  Public Works Service Wkr Trn-C"]
["08565C","Public Wks Operations Analst-C","08565C  Public Wks Operations Analst-C"]
["08567C","Public Wks Safety Specialist-C","08567C  Public Wks Safety Specialist-C"]
["08568C","Public Works Service Wkr I-C","08568C  Public Works Service Wkr I-C"]
["08569C","PW Service Worker II-C","08569C  PW Service Worker II-C"]
["08630C","Real Est Investgtr Aide I -C","08630C  Real Est Investgtr Aide I -C"]
["08650C","Real Est Investgtr Aide II-C","08650C  Real Est Investgtr Aide II-C"]
["08660C","Real Est Investgtr I -C","08660C  Real Est Investgtr I -C"]
["08670C","Real Est Investgtr II-C","08670C  Real Est Investgtr II-C"]
["08700C","Records Mgmt Specialist-C","08700C  Records Mgmt Specialist-C"]
["08703C","City Records Manager - C","08703C  City Records Manager - C"]
["08835C","Recycling Coordinator - C","08835C  Recycling Coordinator - C"]
["08840C","Registered Prof Nurse-C","08840C  Registered Prof Nurse-C"]
["08853C","Regulatory Srvs Associate - C","08853C  Regulatory Srvs Associate - C"]
["08855C","MFD Interagency Coord - C","08855C  MFD Interagency Coord - C"]
["08869C","Results Management Prgm Crd-C","08869C  Results Management Prgm Crd-C"]
["08880C","Right-of-Way Specialist-C","08880C  Right-of-Way Specialist-C"]
["08885C","Risk Manager-C","08885C  Risk Manager-C"]
["08890C","Residential Meter Srv Wkr-C","08890C  Residential Meter Srv Wkr-C"]
["09000C","Senior Applications Analyst-C","09000C  Senior Applications Analyst-C"]
["09001C","Supv Shelter Veterinarian - C","09001C  Supv Shelter Veterinarian - C"]
["09035C","School Patrol Agent - C","09035C  School Patrol Agent - C"]
["09072C","Seasonal ElectionsSptSpecI-C","09072C  Seasonal ElectionsSptSpecI-C"]
["09073C","Seasonal ElectionsSptSpcII-C","09073C  Seasonal ElectionsSptSpcII-C"]
["09075C","Seasonal Environ Health Tech-C",{"$f":"CONCATENATE(A514, \"  \", B514)","v":"09075C  Seasonal Environ Health Tech-C"}]
["09110C","Secretary-C","09110C  Secretary-C"]
["09135C","Security Coordinator-C","09135C  Security Coordinator-C"]
["09145C","Security Manager-C SupIV","09145C  Security Manager-C SupIV"]
["09162C","Senior City Planner-C","09162C  Senior City Planner-C"]
["09170C","Senior Event Coordinator-C","09170C  Senior Event Coordinator-C"]
["09171C","Senior Legal Support Spec-C","09171C  Senior Legal Support Spec-C"]
["09172C","Senior Facilities Planner - C","09172C  Senior Facilities Planner - C"]
["09173C","Senior Internal Auditor-C","09173C  Senior Internal Auditor-C"]
["09175C","Senior Project Manager-C","09175C  Senior Project Manager-C"]
["09179C","Sr Bldg Inspector Building-C","09179C  Sr Bldg Inspector Building-C"]
["09181C","Senior Inspector Bldg Gas Ht-C","09181C  Senior Inspector Bldg Gas Ht-C"]
["09182C","Sr Bldg Inspector Pipe Trds-C","09182C  Sr Bldg Inspector Pipe Trds-C"]
["09183C","Sr Bldg Inspector Plumbing-C","09183C  Sr Bldg Inspector Plumbing-C"]
["09184C","Sewer Pumping Station Opertr-C","09184C  Sewer Pumping Station Opertr-C"]
["09185C","Senior Insp BldgTrade(GasProc)","09185C  Senior Insp BldgTrade(GasProc)"]
["09188C","Senior Insp BldgTradeSteamHtWt","09188C  Senior Insp BldgTradeSteamHtWt"]
["09189C","Senior Telecom Analyst - C","09189C  Senior Telecom Analyst - C"]
["09191C","Senior Inspector Bldg-Refriger","09191C  Senior Inspector Bldg-Refriger"]
["09194C","Senior Water Treatment Opr - C","09194C  Senior Water Treatment Opr - C"]
["09201C","Shift Supervisor, 311 Call Ct","09201C  Shift Supervisor, 311 Call Ct"]
["09202C","Sr Bldg Inspector WAH/AC/V-C","09202C  Sr Bldg Inspector WAH/AC/V-C"]
["09203C","Senior Treasury Analyst-C","09203C  Senior Treasury Analyst-C"]
["09220C","Shop Repair Worker I-C","09220C  Shop Repair Worker I-C"]
["09230C","Shop Repair Worker II-C","09230C  Shop Repair Worker II-C"]
["09245C","Software Engineer II (SD/Dev)","09245C  Software Engineer II (SD/Dev)"]
["09247C","Software Engineer I - C","09247C  Software Engineer I - C"]
["09250C","Software Engineer III-C","09250C  Software Engineer III-C"]
["09280C","Solid Waste Aide -C","09280C  Solid Waste Aide -C"]
["09281C","Solid Waste & Recy Equip Sup-C","09281C  Solid Waste & Recy Equip Sup-C"]
["09284C","Stores Center Coordinator - C","09284C  Stores Center Coordinator - C"]
["09285C","Space Coordinator Prop Srvs-C","09285C  Space Coordinator Prop Srvs-C"]
["09300C","Stage Hand/Prod Tech Temp-C","09300C  Stage Hand/Prod Tech Temp-C"]
["09330C","Prpty Src Opr Mntce  Engr I-C","09330C  Prpty Src Opr Mntce  Engr I-C"]
["09340C","Property Srv Opr Mtc Eng II -C","09340C  Property Srv Opr Mtc Eng II -C"]
["09350C","Stock Clerk I-C","09350C  Stock Clerk I-C"]
["09360C","Stock Clerk II-C","09360C  Stock Clerk II-C"]
["09400C","Stock Worker-C","09400C  Stock Worker-C"]
["09420C","Storekeeper -C","09420C  Storekeeper -C"]
["09440C","Street Maintenance Engineer-C","09440C  Street Maintenance Engineer-C"]
["09750C","Supt,Environmental Engnrg-C","09750C  Supt,Environmental Engnrg-C"]
["09790C","Supt,Water Plant Operations-C","09790C  Supt,Water Plant Operations-C"]
["09800C","Account Maintenance Supvervi-C","09800C  Account Maintenance Supvervi-C"]
["09805C","Supv 911 Trng&Qlty Assurance-C","09805C  Supv 911 Trng&Qlty Assurance-C"]
["09810C","Supv Administrative Svcs-C","09810C  Supv Administrative Svcs-C"]
["09845C","Supv Building Services-C","09845C  Supv Building Services-C"]
["09921C","Supv Cnstr Prj&Mntc Conv Ct-C","09921C  Supv Cnstr Prj&Mntc Conv Ct-C"]
["09922C","Supv Construction Svcs-C SupV","09922C  Supv Construction Svcs-C SupV"]
["09924C","Supv Document Solution Cntr-C","09924C  Supv Document Solution Cntr-C"]
["09927C","Suprv Custodial Operations-C","09927C  Suprv Custodial Operations-C"]
["09930C","Customer Services Supervisor-C","09930C  Customer Services Supervisor-C"]
["09932C","Supv Customer Svc Field Sup I","09932C  Supv Customer Svc Field Sup I"]
["09950C","Supv Distribution Ctr-C Sup II","09950C  Supv Distribution Ctr-C Sup II"]
["09980C","Supv Electronics-C","09980C  Supv Electronics-C"]
["09981C","Supv Engnrg Tech II Sup3-C","09981C  Supv Engnrg Tech II Sup3-C"]
["09982C","Supv Engrng Tech II Sup3GrphC","09982C  Supv Engrng Tech II Sup3GrphC"]
["09983C","Supv Engnrg Tech I  Sup2-C","09983C  Supv Engnrg Tech I  Sup2-C"]
["09984C","Supv Engnrg Tech I Sup2 Lab-C","09984C  Supv Engnrg Tech I Sup2 Lab-C"]
["09985C","Supv Environmental-C SupIV","09985C  Supv Environmental-C SupIV"]
["09992C","Supv Fire Inspection Service-C","09992C  Supv Fire Inspection Service-C"]
["10000C","Supv Equipment, SupV-C","10000C  Supv Equipment, SupV-C"]
["10005C","Supv Event Services Sup III-C","10005C  Supv Event Services Sup III-C"]
["10007C","Supv Facilities Svc SupIII-C","10007C  Supv Facilities Svc SupIII-C"]
["10035C","Supervisor Forensic Science-C","10035C  Supervisor Forensic Science-C"]
["10074C","Supv Criminal Lgl Supt Srv-C",{"$f":"CONCATENATE(A578, \"  \", B578)","v":"10074C  Supv Criminal Lgl Supt Srv-C"}]
["10076C","Supv, Impound Lot C.Monitor-C","10076C  Supv, Impound Lot C.Monitor-C"]
["10077C","Supv IT Deskside Services-C","10077C  Supv IT Deskside Services-C"]
["10078C","Supv IT Service Desk-C","10078C  Supv IT Service Desk-C"]
["10079C","Supv Operations Support-C","10079C  Supv Operations Support-C"]
["10081C","Supv Meter Srvc Wrkrs-C SupII","10081C  Supv Meter Srvc Wrkrs-C SupII"]
["10082C","IT  Collaboration Analyst I-C","10082C  IT  Collaboration Analyst I-C"]
["10083C","IT  Collaboration Analyst II-C","10083C  IT  Collaboration Analyst II-C"]
["10084C","IT Deskside Support Tech I - C","10084C  IT Deskside Support Tech I - C"]
["10085C","IT Deskside Support Tech II- C","10085C  IT Deskside Support Tech II- C"]
["10086C","IT Service Desk Agent I - C","10086C  IT Service Desk Agent I - C"]
["10087C","IT Service Desk Agent II","10087C  IT Service Desk Agent II"]
["10088C","IT  Collaboration Engineer I-C","10088C  IT  Collaboration Engineer I-C"]
["10089C","IT  CollaborationEngineer II-C","10089C  IT  CollaborationEngineer II-C"]
["10095C","Supervisor WaterDistribution-C","10095C  Supervisor WaterDistribution-C"]
["10140C","Supv Parking Mgmt &Traf Ctl-C","10140C  Supv Parking Mgmt &Traf Ctl-C"]
["10153C","Supv Payroll/Accounts Payabl-C","10153C  Supv Payroll/Accounts Payabl-C"]
["10160C","Manager Planning-C","10160C  Manager Planning-C"]
["10170C","Supv Plans Review-C","10170C  Supv Plans Review-C"]
["10193C","Supv Police Record Services-C","10193C  Supv Police Record Services-C"]
["10195C","Supv Police Support Services-C","10195C  Supv Police Support Services-C"]
["10200C","Sup Police Wrhse Fclty-C Sup I","10200C  Sup Police Wrhse Fclty-C Sup I"]
["10205C","Supv Problem Properties-C","10205C  Supv Problem Properties-C"]
["10207C","Supv Property & Evidence-C","10207C  Supv Property & Evidence-C"]
["10220C","Supv Pumping Stations-C SupIV","10220C  Supv Pumping Stations-C SupIV"]
["10230C","Supv Ramp Repair Restr-C SupIV","10230C  Supv Ramp Repair Restr-C SupIV"]
["10240C","Sup Real Estate Assess-C SupIV","10240C  Sup Real Estate Assess-C SupIV"]
["10260C","Supv Security & Safety-C","10260C  Supv Security & Safety-C"]
["10270C","Supv Sewer Maintenance-C Sup V","10270C  Supv Sewer Maintenance-C Sup V"]
["10282C","Supv Sidewalk Insp-C SupIII","10282C  Supv Sidewalk Insp-C SupIII"]
["10300C","Supv Towing & Impound-C SupIV","10300C  Supv Towing & Impound-C SupIV"]
["10320C","Supv Traffic Equip Mnt-C SupIV","10320C  Supv Traffic Equip Mnt-C SupIV"]
["10335C","Supv Transportation Planner-C","10335C  Supv Transportation Planner-C"]
["10350C","Supv Treasury Division-C","10350C  Supv Treasury Division-C"]
["10359C","Supv Water Permits & Connect-C","10359C  Supv Water Permits & Connect-C"]
["10360C","Mgr Water Quality & Lab Oprs-C","10360C  Mgr Water Quality & Lab Oprs-C"]
["10370C","Sup Water Treatmt Plnt-C SupIV","10370C  Sup Water Treatmt Plnt-C SupIV"]
["10375C","Supv WaterPlantElec&CntlSytm-C","10375C  Supv WaterPlantElec&CntlSytm-C"]
["10385C","Sustainability Program Coord-C","10385C  Sustainability Program Coord-C"]
["10401C","Systems Engineer II-C","10401C  Systems Engineer II-C"]
["10404C","Systems Integrator III-C","10404C  Systems Integrator III-C"]
["10405C","Systems Integrator IV-C","10405C  Systems Integrator IV-C"]
["10406C","Systems Integrator V-C","10406C  Systems Integrator V-C"]
["10407C","Systems Integrator VI-C","10407C  Systems Integrator VI-C"]
["10527C","Technology Services Coord - C","10527C  Technology Services Coord - C"]
["10588C","Tort Liability Claims Crd - C","10588C  Tort Liability Claims Crd - C"]
["10590C","Traffic Control Agent I-C","10590C  Traffic Control Agent I-C"]
["10600C","Traffic Ctrl Agent II-C Sup I","10600C  Traffic Ctrl Agent II-C Sup I"]
["10630C","Traffic Systems Operator-C","10630C  Traffic Systems Operator-C"]
["10633C","Training Development Supv-C","10633C  Training Development Supv-C"]
["10635C","Transportation Planner-C","10635C  Transportation Planner-C"]
["10665C","Treasury Analyst - C","10665C  Treasury Analyst - C"]
["10710C","Truck Driver -C","10710C  Truck Driver -C"]
["10712C","Truck Driver WU Laborer-C","10712C  Truck Driver WU Laborer-C"]
["10714C","Truck Driver WU CEO-C","10714C  Truck Driver WU CEO-C"]
["10716C","Truck Driver WU Shop-C","10716C  Truck Driver WU Shop-C"]
["10718C","Truck Driver Reserve-C","10718C  Truck Driver Reserve-C"]
["10720C","Truck Driver, Sanitation-C","10720C  Truck Driver, Sanitation-C"]
["10730C","Urban Designer - C","10730C  Urban Designer - C"]
["10800C","Victim/Witness Assistant-C","10800C  Victim/Witness Assistant-C"]
["10805C","Video & Audio Evidence Tech-C","10805C  Video & Audio Evidence Tech-C"]
["10830C","Video Specialist-C","10830C  Video Specialist-C"]
["10857C","Water Bsns Enterpris Sys Mgr-C","10857C  Water Bsns Enterpris Sys Mgr-C"]
["10859C","Water Maintenance Techinian -C","10859C  Water Maintenance Techinian -C"]
["10895C","Water Network Analyst - C",{"$f":"CONCATENATE(A642, \"  \", B642)","v":"10895C  Water Network Analyst - C"}]
["10903C","Water Resources Administrat-C","10903C  Water Resources Administrat-C"]
["10905C","Water Svc Maint Repair Coord-C","10905C  Water Svc Maint Repair Coord-C"]
["10907C","Water Resources RegulatoryCr-C","10907C  Water Resources RegulatoryCr-C"]
["10908C","Water Treatment Operator - C","10908C  Water Treatment Operator - C"]
["10940C","Water Works Service Wrker I-C","10940C  Water Works Service Wrker I-C"]
["10950C","Water Works Service Wrker II-C","10950C  Water Works Service Wrker II-C"]
["10960C","Welder,Shop-C","10960C  Welder,Shop-C"]
["11010C","Workers Comp Claims Coord-C","11010C  Workers Comp Claims Coord-C"]
["11020C","Claims Specialist-C","11020C  Claims Specialist-C"]
["11030C","Yard Coordinator I - C","11030C  Yard Coordinator I - C"]
["11045C","Yard Supv Impound Lot-C Sup I","11045C  Yard Supv Impound Lot-C Sup I"]
["42340C","Marketing Specialist CPED - C","42340C  Marketing Specialist CPED - C"]
["52150C","Business Services Specialist-C","52150C  Business Services Specialist-C"]
["52170C","Associate Buyer-C","52170C  Associate Buyer-C"]
["52265C","Development Finance Analyst-C","52265C  Development Finance Analyst-C"]
["52320C","Engineering Inspector-City","52320C  Engineering Inspector-City"]
["52340C","Senior Economic Dev Spec-City","52340C  Senior Economic Dev Spec-City"]
["52360C","Economic Development Spec-C","52360C  Economic Development Spec-C"]
["52364C","Economic Research Analyst-C","52364C  Economic Research Analyst-C"]
["52410C","NRP/Finance Specialist-C","52410C  NRP/Finance Specialist-C"]
["52444C","Constr Mgt Specialist-City","52444C  Constr Mgt Specialist-City"]
["52446C","Senior Construction Mgmt Speci","52446C  Senior Construction Mgmt Speci"]
["52520C","Loan Administrator-C","52520C  Loan Administrator-C"]
["52540C","Manager Dev Loan Contract-C","52540C  Manager Dev Loan Contract-C"]
["52570C","Manager Economic Dev (CPED)-C","52570C  Manager Economic Dev (CPED)-C"]
["52580C","Manager Business Finance-C","52580C  Manager Business Finance-C"]
["52600C","Manager Housing Development-C","52600C  Manager Housing Development-C"]
["52620C","Mgr NRP & Citizen Participat-C","52620C  Mgr NRP & Citizen Participat-C"]
["52710C","Development Process Spec-C","52710C  Development Process Spec-C"]
["52730C","CPED Project Coordinator-C","52730C  CPED Project Coordinator-C"]
["52740C","Senior Project Coordinator-C","52740C  Senior Project Coordinator-C"]
["52775C","Real Estate Assistant-C","52775C  Real Estate Assistant-C"]
["52780C","Real Estate Coordinator-C","52780C  Real Estate Coordinator-C"]
["52810C","Construction Mgmt Crd (Sup IV)","52810C  Construction Mgmt Crd (Sup IV)"]
["52873C","Senior Contract Management Sp","52873C  Senior Contract Management Sp"]
["52875C","Senior Development Fin Anlst-C","52875C  Senior Development Fin Anlst-C"]
["52885C","Senior NRP/Citzn Part Spec -C","52885C  Senior NRP/Citzn Part Spec -C"]
["52890C","Development Finance Spec-C","52890C  Development Finance Spec-C"]
["52893C","Development Grants Coord - C","52893C  Development Grants Coord - C"]
["52900C","Principal Project Crd (CPED)-C","52900C  Principal Project Crd (CPED)-C"]
["B05130","Gen Foreman Carpenter-B","B05130  Gen Foreman Carpenter-B"]
["B07284","Office Support Specialist II-B","B07284  Office Support Specialist II-B"]
["B31007","Administrative Assistant -B","B31007  Administrative Assistant -B"]
["B31010","Admin Manager/Attorney-B","B31010  Admin Manager/Attorney-B"]
["B31030","Carpenter-B","B31030  Carpenter-B"]
["B31035","Custodial Supervisor","B31035  Custodial Supervisor"]
["B31050","Custodial Worker-B","B31050  Custodial Worker-B"]
["B31070","Custodian Part-Time-B","B31070  Custodian Part-Time-B"]
["B31090","Director Municipal Bldg Com-B","B31090  Director Municipal Bldg Com-B"]
["B31110","Electrician-B","B31110  Electrician-B"]
["B31130","Foreman Carpenter-B","B31130  Foreman Carpenter-B"]
["B31135","Foreman Custodian","B31135  Foreman Custodian"]
["B31140","Foreman Electrical-B","B31140  Foreman Electrical-B"]
["B31150","Foreman Pipefitter-B","B31150  Foreman Pipefitter-B"]
["B31152","Foreman Plumber-B","B31152  Foreman Plumber-B"]
["B31153","Information Desk Specialist-B","B31153  Information Desk Specialist-B"]
["B31190","Painter Foreman-B","B31190  Painter Foreman-B"]
["B31200","Painter-B","B31200  Painter-B"]
["B31210","Pipefitter Refrig/AirCond-B","B31210  Pipefitter Refrig/AirCond-B"]
["B31219","Pipefitter Apprentice - B","B31219  Pipefitter Apprentice - B"]
["B31220","Pipefitter-B","B31220  Pipefitter-B"]
["B31230","Plumber-B","B31230  Plumber-B"]
["B31231","Project Architect-B",{"$f":"CONCATENATE(A705, \"  \", B705)","v":"B31231  Project Architect-B"}]
["B31235","Project Coordinator-B","B31235  Project Coordinator-B"]
["B31237","Project Manager-B","B31237  Project Manager-B"]
["B31350","Security Officer-B","B31350  Security Officer-B"]
["B31355","Senior Engineer-B","B31355  Senior Engineer-B"]
["B31370","Security Supervisor-B","B31370  Security Supervisor-B"]
["B31400","Utility Worker-B","B31400  Utility Worker-B"]
["B41830","Budget Analyst-B","B41830  Budget Analyst-B"]
["B42110","Drywall Finisher Outside Trd-B","B42110  Drywall Finisher Outside Trd-B"]
["B91150","Carpenter (Outside Trades)-B","B91150  Carpenter (Outside Trades)-B"]
["B91200","Electrician (Outside Trades)-B","B91200  Electrician (Outside Trades)-B"]
["B91850","Painter (Outside Trades)-B","B91850  Painter (Outside Trades)-B"]
["B91960","Pipefitter Foreman (Out Tr)-B","B91960  Pipefitter Foreman (Out Tr)-B"]
["B92000","Plumber (Outside Trades)-B","B92000  Plumber (Outside Trades)-B"]
["B92051","Plumber Apprentice (Out)-B","B92051  Plumber Apprentice (Out)-B"]
["C00100","Access & Outreach Mgr APPT - C","C00100  Access & Outreach Mgr APPT - C"]
["C00270","Administrative Aide Mayor-C","C00270  Administrative Aide Mayor-C"]
["C00550","Asst Director Purchasing - C","C00550  Asst Director Purchasing - C"]
["C00590","Asst Chief Fire Dept-C","C00590  Asst Chief Fire Dept-C"]
["C00600","Assistant Chief of Police-C","C00600  Assistant Chief of Police-C"]
["C00680","Asst City Clerk-C","C00680  Asst City Clerk-C"]
["C00700","Director Regulatory Services-C","C00700  Director Regulatory Services-C"]
["C00701","Asst City Coord Nbrhd Cm Rel-C","C00701  Asst City Coord Nbrhd Cm Rel-C"]
["C00710","Director MPLS 311 (APPT)  -C","C00710  Director MPLS 311 (APPT)  -C"]
["C00713","Asst Director Civil Rights-C","C00713  Asst Director Civil Rights-C"]
["C00730","Asst Dir Emergency ComTechn-C","C00730  Asst Dir Emergency ComTechn-C"]
["C00860","Asst Director Treasury-C","C00860  Asst Director Treasury-C"]
["C01457","Business Services Manager-C","C01457  Business Services Manager-C"]
["C01690","Assistant City Coord, CIO","C01690  Assistant City Coord, CIO"]
["C01700","Chief Appraiser - C","C01700  Chief Appraiser - C"]
["C01720","Chief of Fire Department-C","C01720  Chief of Fire Department-C"]
["C01730","Chief of Police-C","C01730  Chief of Police-C"]
["C01830","City Assessor-C","C01830  City Assessor-C"]
["C01840","City Attorney-C","C01840  City Attorney-C"]
["C01851","City Clerk - C","C01851  City Clerk - C"]
["C01860","City Coordinator-C","C01860  City Coordinator-C"]
["C01870","Director Public Works (Appt)-C","C01870  Director Public Works (Appt)-C"]
["C02250","Commissioner of Health-C","C02250  Commissioner of Health-C"]
["C02600","Controller-C","C02600  Controller-C"]
["C02740","Council Member Asst/Aide-C","C02740  Council Member Asst/Aide-C"]
["C02755","Council Office Asoc APPT - C","C02755  Council Office Asoc APPT - C"]
["C02760","Council Member-C","C02760  Council Member-C"]
["C03000","Deputy City Attorney Civil-C","C03000  Deputy City Attorney Civil-C"]
["C03010","Deputy City Attorney Crimnl-C","C03010  Deputy City Attorney Crimnl-C"]
["C03015","Deputy City Coordinator-C","C03015  Deputy City Coordinator-C"]
["C03018","Dep Dir Admin & Comm Engage-C","C03018  Dep Dir Admin & Comm Engage-C"]
["C03019","Dep Dir Animal Care&Control-C","C03019  Dep Dir Animal Care&Control-C"]
["C03023","Deputy Dir Communications-C","C03023  Deputy Dir Communications-C"]
["C03024","Dep Dir BIS Info Security Appt","C03024  Dep Dir BIS Info Security Appt"]
["C03026","Dep Dir Information Techn -C","C03026  Dep Dir Information Techn -C"]
["C03028","Deputy Director IGR - C","C03028  Deputy Director IGR - C"]
["C03029","Dep Dir Opr & Bus Improve - C","C03029  Dep Dir Opr & Bus Improve - C"]
["C03030","Deputy Dir Housing Insp Srvs-C","C03030  Deputy Dir Housing Insp Srvs-C"]
["C03034","Dep Dir Park Mgmt Trf Contrl-C","C03034  Dep Dir Park Mgmt Trf Contrl-C"]
["C03040","Deputy Dir Public Works-C","C03040  Deputy Dir Public Works-C"]
["C03045","DFO/Dir Entrprse Fin Mgt Bgt-C","C03045  DFO/Dir Entrprse Fin Mgt Bgt-C"]
["C03051","Dir Business Admin PW-C","C03051  Dir Business Admin PW-C"]
["C03129","Director Acctg & Fin Rprtg-C","C03129  Director Acctg & Fin Rprtg-C"]
["C03170","Director Assessments-C","C03170  Director Assessments-C"]
["C03180","Director Budget-C","C03180  Director Budget-C"]
["C03182","Manager, Budget Info & Anly -C","C03182  Manager, Budget Info & Anly -C"]
["C03184","Director Business Administ-C","C03184  Director Business Administ-C"]
["C03185","Director Capital & Debt Mgmt-C","C03185  Director Capital & Debt Mgmt-C"]
["C03194","Dir Complaint Inv Civil Rgts-C","C03194  Dir Complaint Inv Civil Rgts-C"]
["C03196","Dir CPED Ops & Innovation-C",{"$f":"CONCATENATE(A769, \"  \", B769)","v":"C03196  Dir CPED Ops & Innovation-C"}]
["C03200","Director Civil Rights-C","C03200  Director Civil Rights-C"]
["C03215","Assistant City Coord, Commun-C","C03215  Assistant City Coord, Commun-C"]
["C03216","Director Dvlpmnt Services-C","C03216  Director Dvlpmnt Services-C"]
["C03217","Director Development Fin-C","C03217  Director Development Fin-C"]
["C03219","Executive Director CPED-C","C03219  Executive Director CPED-C"]
["C03225","Director Emergency Mgmnt-C","C03225  Director Emergency Mgmnt-C"]
["C03233","Director Employee Services-C","C03233  Director Employee Services-C"]
["C03240","Director Trans, Plan & Engn -","C03240  Director Trans, Plan & Engn -"]
["C03250","Director Environmntl Health -C","C03250  Director Environmntl Health -C"]
["C03265","Director Event Services-C","C03265  Director Event Services-C"]
["C03267","Director Facility Services-C","C03267  Director Facility Services-C"]
["C03300","Director BIS BD Deputy  CIO-C","C03300  Director BIS BD Deputy  CIO-C"]
["C03310","Director Property Services -C","C03310  Director Property Services -C"]
["C03320","Assistant City Coord, Dir IGR","C03320  Assistant City Coord, Dir IGR"]
["C03335","Director HRIS Administration-C","C03335  Director HRIS Administration-C"]
["C03340","Asst City Coord Director HR-C","C03340  Asst City Coord Director HR-C"]
["C03345","Director Information Tech Sv-C","C03345  Director Information Tech Sv-C"]
["C03348","Dir Innovation Delivery Team-C","C03348  Dir Innovation Delivery Team-C"]
["C03355","Internal Audit - C","C03355  Internal Audit - C"]
["C03377","Director Long Range Planning-C","C03377  Director Long Range Planning-C"]
["C03380","Director MECC-C","C03380  Director MECC-C"]
["C03394","Director Managerl Acctg&Bdgt-C","C03394  Director Managerl Acctg&Bdgt-C"]
["C03396","Director MFD Finance&Logistics","C03396  Director MFD Finance&Logistics"]
["C03397","Director MPD Financial Opr - C","C03397  Director MPD Financial Opr - C"]
["C03462","Director Planning & Admin-C","C03462  Director Planning & Admin-C"]
["C03463","Dir Police Conduct Rvw (CR)-C","C03463  Dir Police Conduct Rvw (CR)-C"]
["C03464","Director Policy & Comm Prgms-C","C03464  Director Policy & Comm Prgms-C"]
["C03466","Director Pub Health Initiatvs-","C03466  Director Pub Health Initiatvs-"]
["C03490","Director Purchasing-C","C03490  Director Purchasing-C"]
["C03494","Director Research & Prgm Dv -C","C03494  Director Research & Prgm Dv -C"]
["C03495","Director Risk & Claims Mgt -C","C03495  Director Risk & Claims Mgt -C"]
["C03505","Director Srfc Water & Sewers-C","C03505  Director Srfc Water & Sewers-C"]
["C03510","Director Solid Waste-C","C03510  Director Solid Waste-C"]
["C03525","Director Strategic Employmnt-C","C03525  Director Strategic Employmnt-C"]
["C03533","Dir Transptn Plan & Program -C","C03533  Dir Transptn Plan & Program -C"]
["C03535","Director Traffic Services-C","C03535  Director Traffic Services-C"]
["C03536","Director Transp Mtc & Repair-C","C03536  Director Transp Mtc & Repair-C"]
["C03537","Director Treasury-C","C03537  Director Treasury-C"]
["C03540","Dir Water Trmnt & Distrib-C","C03540  Dir Water Trmnt & Distrib-C"]
["C03574","Director MPD Crime Lab - C","C03574  Director MPD Crime Lab - C"]
["C03810","Election Judge-C","C03810  Election Judge-C"]
["C03820","Student Election Judge","C03820  Student Election Judge"]
["C04113","Entry Lvl Journeyman Painter-C","C04113  Entry Lvl Journeyman Painter-C"]
["C04233","Event Services Manager-C","C04233  Event Services Manager-C"]
["C04234","Exec Assistant to the Mayor-C","C04234  Exec Assistant to the Mayor-C"]
["C04237","Assistant City Coord, Cnv Ct-C","C04237  Assistant City Coord, Cnv Ct-C"]
["C04250","Exec Secretary CLIC-C","C04250  Exec Secretary CLIC-C"]
["C04298","Facility Operations Manager-C","C04298  Facility Operations Manager-C"]
["C04330","Asst City Cord/Chief Fnc Off-C","C04330  Asst City Cord/Chief Fnc Off-C"]
["C05290","Government Relations Rep-C","C05290  Government Relations Rep-C"]
["C05350","Guest Services Manager-C","C05350  Guest Services Manager-C"]
["C05424","HR Principal Consultant-C","C05424  HR Principal Consultant-C"]
["C05893","Labor Relations Coordinator-C","C05893  Labor Relations Coordinator-C"]
["C06387","Managing Attorney Civil - C","C06387  Managing Attorney Civil - C"]
["C06545","Mgr Assessment Srv (Appointed)","C06545  Mgr Assessment Srv (Appointed)"]
["C06550","Manager Admin & Persnl (PW)-C","C06550  Manager Admin & Persnl (PW)-C"]
["C06685","Manager Field Support-C","C06685  Manager Field Support-C"]
["C06705","Mgr Benefits Administration -C","C06705  Mgr Benefits Administration -C"]
["C06709","Manager Convention Center-C","C06709  Manager Convention Center-C"]
["C06710","Finance Manager City-C","C06710  Finance Manager City-C"]
["C06725","Manager Public Wrks Finance-C","C06725  Manager Public Wrks Finance-C"]
["C06740","Mgr Homelessness Initiatives-C","C06740  Mgr Homelessness Initiatives-C"]
["C07030","Mayor-C","C07030  Mayor-C"]
["C07040","Mayors Administrative Deputy-C",{"$f":"CONCATENATE(A833, \"  \", B833)","v":"C07040  Mayors Administrative Deputy-C"}]
["C07090","Medical Support Team/MD-C","C07090  Medical Support Team/MD-C"]
["C07095","Medical Support Team/Oprtn-C","C07095  Medical Support Team/Oprtn-C"]
["C07097","Medical Support Team/Trng-C","C07097  Medical Support Team/Trng-C"]
["C07360","Paramedics/Fitness Testing-C","C07360  Paramedics/Fitness Testing-C"]
["C07365","Paramedics/Operation-C","C07365  Paramedics/Operation-C"]
["C07370","Paramedics/Training-C","C07370  Paramedics/Training-C"]
["C07500","Step Up Program Intern-C","C07500  Step Up Program Intern-C"]
["C08100","Police Commander-C","C08100  Police Commander-C"]
["C08110","Police Deputy Chief Admin Sv-C","C08110  Police Deputy Chief Admin Sv-C"]
["C08120","Police Deputy Chief Investgn-C","C08120  Police Deputy Chief Investgn-C"]
["C08130","Police Deputy Chief of Staff-C","C08130  Police Deputy Chief of Staff-C"]
["C08140","Police Inspector-C","C08140  Police Inspector-C"]
["C08272","Policy Aide Community Outrch-C","C08272  Policy Aide Community Outrch-C"]
["C08274","Policy Aide-C","C08274  Policy Aide-C"]
["C08320","Event Operations Manager-C","C08320  Event Operations Manager-C"]
["C09078","Seasonal Legislative Aide","C09078  Seasonal Legislative Aide"]
["C09171","Senior Gov Relation Rep - Appt","C09171  Senior Gov Relation Rep - Appt"]
["C09173","Sr Policy Aide - C","C09173  Sr Policy Aide - C"]
["C09174","Sr Policy Aide Press Secretary","C09174  Sr Policy Aide Press Secretary"]
["C09175","Principal Policy Aide - C","C09175  Principal Policy Aide - C"]
["C09177","Sr Mgr Trnst Ornt  Dev CPED-C","C09177  Sr Mgr Trnst Ornt  Dev CPED-C"]
["C09475","Student Intern Graduate Schl-C","C09475  Student Intern Graduate Schl-C"]
["C09485","Student Intern Undergraduate-C","C09485  Student Intern Undergraduate-C"]
["C09490","Urban Scholar Intern-Gradute-C","C09490  Urban Scholar Intern-Gradute-C"]
["C09495","Urban Scholar Intern-Undergd-C","C09495  Urban Scholar Intern-Undergd-C"]
["C09750","METP Summer Youth 9063","C09750  METP Summer Youth 9063"]
["C09770","METP Summer Youth 8017","C09770  METP Summer Youth 8017"]
["C09806","METP Summer Youth 8810","C09806  METP Summer Youth 8810"]
["C09811","METP Summer Youth 7610","C09811  METP Summer Youth 7610"]
["C09812","METP Summer Youth 9102","C09812  METP Summer Youth 9102"]
["C09814","METP Summer Youth 2585","C09814  METP Summer Youth 2585"]
["C09815","METP Summer Youth 9015","C09815  METP Summer Youth 9015"]
["C09836","METP Summer Youth 9014","C09836  METP Summer Youth 9014"]
["C09842","METP Summer Youth 8264","C09842  METP Summer Youth 8264"]
["C09858","METP Summer Youth 9082","C09858  METP Summer Youth 9082"]
["C09859","METP Summer Youth 8868","C09859  METP Summer Youth 8868"]
["C09869","METP Summer Youth 8869","C09869  METP Summer Youth 8869"]
["C09886","METP Summer Youth 8008","C09886  METP Summer Youth 8008"]
["C09890","Director Fleet Services -C","C09890  Director Fleet Services -C"]
["C09900","Supv Attorney Criminal-C","C09900  Supv Attorney Criminal-C"]
["C52250","Deputy Director CPED-C","C52250  Deputy Director CPED-C"]
["C52270","Director Economic Plcy & Dev-C","C52270  Director Economic Plcy & Dev-C"]
["C52280","Director Housing & Policy Dv-C","C52280  Director Housing & Policy Dv-C"]
["C91085","Constr Craft Laborer-C(OtTrds)","C91085  Constr Craft Laborer-C(OtTrds)"]
["C91090","Automotive Mechanic (OutTrd)-C","C91090  Automotive Mechanic (OutTrd)-C"]
["C91100","Bricklayer (Outside Trades)-C","C91100  Bricklayer (Outside Trades)-C"]
["C91110","Bricklayer Foreman (Out Tr)-C","C91110  Bricklayer Foreman (Out Tr)-C"]
["C91140","Cable Splicer/Welder-C","C91140  Cable Splicer/Welder-C"]
["C91150","Carpenter (Outside Trades)-C","C91150  Carpenter (Outside Trades)-C"]
["C91160","Carpenter Foreman (Out Tr)-C","C91160  Carpenter Foreman (Out Tr)-C"]
["C91170","Cement Finisher Jrny OutTrds-C","C91170  Cement Finisher Jrny OutTrds-C"]
["C91200","Electrician (Outside Trades)-C","C91200  Electrician (Outside Trades)-C"]
["C91800","Electrician Apprntc (Out Tr)-C","C91800  Electrician Apprntc (Out Tr)-C"]
["C91805","Electrician Foreman (OutTr)-C","C91805  Electrician Foreman (OutTr)-C"]
["C91810","Electrician Foremn Mstr Out-C","C91810  Electrician Foremn Mstr Out-C"]
["C91815","Elevator Mechanic (OutTrds)-C","C91815  Elevator Mechanic (OutTrds)-C"]
["C91820","Inspector Rainleader Out Trd-C","C91820  Inspector Rainleader Out Trd-C"]
["C91830","Iron Worker (Outside Tr)-C","C91830  Iron Worker (Outside Tr)-C"]
["C91835","Iron Worker Foreman (Out)-C","C91835  Iron Worker Foreman (Out)-C"]
["C91850","Painter (Outside Trades)-C","C91850  Painter (Outside Trades)-C"]
["C91855","Painter Apprentice (Outside)-C","C91855  Painter Apprentice (Outside)-C"]
["C91860","Painter Foreman (Outside)-C","C91860  Painter Foreman (Outside)-C"]
["C91900","Pipefitter (Outside Trades)-C","C91900  Pipefitter (Outside Trades)-C"]
["C91950","Pipefitter Instrmnt (Out)-C",{"$f":"CONCATENATE(A897, \"  \", B897)","v":"C91950  Pipefitter Instrmnt (Out)-C"}]
["C91955","Pipefitter Instrmnt Frmn Out-C","C91955  Pipefitter Instrmnt Frmn Out-C"]
["C91960","Pipefitter Foreman (Out Tr)-C","C91960  Pipefitter Foreman (Out Tr)-C"]
["C91970","Plumber Pre-Apprentice Out Trd","C91970  Plumber Pre-Apprentice Out Trd"]
["C92000","Plumber (Outside Trades)-C","C92000  Plumber (Outside Trades)-C"]
["C92051","Plumber Aprntc(Out)","C92051  Plumber Aprntc(Out)"]
["C92060","Plumber Foreman (Out) -C","C92060  Plumber Foreman (Out) -C"]
["C92070","Plumber Foreman Master(Out)-C","C92070  Plumber Foreman Master(Out)-C"]
["C92150","Sheet Metal Worker (Outside)-C","C92150  Sheet Metal Worker (Outside)-C"]
["C92160","Sheet Metal Wrkr Foremn(Out)-C","C92160  Sheet Metal Wrkr Foremn(Out)-C"]
["C92170","CEO Oiler Outside Trds-C","C92170  CEO Oiler Outside Trds-C"]
["C92175","CEO Oiler Truck Crn OutTrds-C","C92175  CEO Oiler Truck Crn OutTrds-C"]
["C92180","CEO (E) Outside Trds-C","C92180  CEO (E) Outside Trds-C"]
["C92185","CEO (D) Outside Trds-C","C92185  CEO (D) Outside Trds-C"]
["C92190","CEO (C) Outside Trds-C","C92190  CEO (C) Outside Trds-C"]
["C92195","CEO (B) Outside Trds-C","C92195  CEO (B) Outside Trds-C"]
["C92200","CEO (A) Outside Trds-C","C92200  CEO (A) Outside Trds-C"]
["T03550","Director of Internal Audit-T","T03550  Director of Internal Audit-T"]
["T04200","Estimate Taxation Bd Member-T","T04200  Estimate Taxation Bd Member-T"]
["T04260","Exec Secretary Estimate-Taxn-T","T04260  Exec Secretary Estimate-Taxn-T"]
["Y70990","Accounting Associate, YCB-Y","Y70990  Accounting Associate, YCB-Y"]
["Y71200","Communications Coord YCB-Y","Y71200  Communications Coord YCB-Y"]
["Y71225","Communications Director YCB-Y","Y71225  Communications Director YCB-Y"]
["Y71235","Community Initiatives Managr-Y","Y71235  Community Initiatives Managr-Y"]
["Y71350","Director Way to Grow-Y","Y71350  Director Way to Grow-Y"]
["Y71450","Exec Director Youth Coord Bd-Y","Y71450  Exec Director Youth Coord Bd-Y"]
["Y71500","Financial Manager YCB-Y","Y71500  Financial Manager YCB-Y"]
["Y71530","Financial Accountant -Y","Y71530  Financial Accountant -Y"]
["Y71546","Middle Schl Outreach Faclttr-Y","Y71546  Middle Schl Outreach Faclttr-Y"]
["Y71600","Office Manager YCB-Y","Y71600  Office Manager YCB-Y"]
["Y71740","Program Manager -Y","Y71740  Program Manager -Y"]
["Y71800","Project Coordinator, WTG-Y","Y71800  Project Coordinator, WTG-Y"]
["Y71850","Project Director WTG-Y","Y71850  Project Director WTG-Y"]
["Y71870","Receptionist/Admin Asst-Y","Y71870  Receptionist/Admin Asst-Y"]
["Y71900","Youth Hotline Coordinator-Y","Y71900  Youth Hotline Coordinator-Y"]
["Y71950","Youth Information Specialist-Y","Y71950  Youth Information Specialist-Y"]
["Y71975","Youth Initiatives Asst-Y","Y71975  Youth Initiatives Asst-Y"]
["Y72025","Youth Supervisor-Y","Y72025  Youth Supervisor-Y"]
[null,null,{"$f":"CONCATENATE(A935, \"  \", B935)","v":"  "}]
[null,null,"  "]
[null,null,"  "]
[null,null,"  "]
[null,null,"  "]
[null,null,"  "]
[null,null,"  "]
[null,null,"  "]
[null,null,"  "]
[null,null,"  "]
[null,null,"  "]
[null,null,"  "]
[null,null,"  "]
[null,null,"  "]
[null,null,"  "]
[null,null,"  "]
[null,null,"  "]
[null,null,"  "]
[null,null,"  "]
[null,null,"  "]
[null,null,"  "]
[null,null,"  "]
[null,null,"  "]
[null,null,{"$f":"CONCATENATE(A958, \"  \", B958)","v":"  "}]
[null,null,"  "]
[null,null,"  "]
[null,null,"  "]
[null,null,"  "]
[null,null,"  "]
[null,null,"  "]
[null,null,"  "]
[null,null,"  "]
[null,null,"  "]
[null,null,"  "]
[null,null,"  "]
[null,null,"  "]
[null,null,"  "]
[null,null,"  "]
[null,null,"  "]
[null,null,"  "]
[null,null,"  "]
[null,null,"  "]
[null,null,"  "]
[null,null,"  "]
[null,null,"  "]
[null,null,"  "]
[null,null,"  "]
[null,null,"  "]
[null,null,"  "]
[null,null,"  "]
[null,null,"  "]
[null,null,"  "]
[null,null,"  "]
[null,null,"  "]
[null,null,"  "]
[null,null,"  "]
[null,null,"  "]
[null,null,"  "]
[null,null,"  "]
[null,null,"  "]
[null,null,"  "]
[null,null,"  "]
[null,null,"  "]
[null,null,"  "]
[null,null,"  "]
[null,null,"  "]
[null,null,"  "]
[null,null,"  "]
[null,null,"  "]
[null,null,"  "]
[null,null,"  "]
[null,null,"  "]
[null,null,"  "]
[null,null,"  "]
[null,null,"  "]
[null,null,"  "]
[null,null,"  "]
[null,null,"  "]
[null,null,"  "]
[null,null,"  "]
[null,null,"  "]
[null,null,"  "]
[null,null,"  "]
[null,null,"  "]
[null,null,"  "]
[null,null,"  "]
[null,null,"  "]
[null,null,{"$f":"CONCATENATE(A1022, \"  \", B1022)","v":"  "}]
[null,null,"  "]
[null,null,"  "]
[null,null,"  "]
[null,null,"  "]
[null,null,"  "]
[null,null,"  "]
[null,null,"  "]
[null,null,"  "]
[null,null,"  "]
[null,null,"  "]
[null,null,"  "]
[null,null,"  "]
[null,null,"  "]
[null,null,"  "]
[null,null,"  "]
[null,null,"  "]
[null,null,"  "]
[null,null,"  "]
[null,null,"  "]
[null,null,"  "]
[null,null,"  "]
[null,null,"  "]
[null,null,"  "]
[null,null,"  "]
[null,null,"  "]
[null,null,"  "]
[null,null,"  "]
[null,null,"  "]
[null,null,"  "]
[null,null,"  "]
[null,null,"  "]
[null,null,"  "]
[null,null,"  "]
[null,null,"  "]
[null,null,"  "]
[null,null,"  "]
[null,null,"  "]
[null,null,"  "]
[null,null,"  "]
[null,null,"  "]
[null,null,"  "]
[null,null,"  "]
[null,null,"  "]
[null,null,"  "]
[null,null,"  "]
[null,null,"  "]
[null,null,"  "]

{"sheet":"RTS-Empl Class-Class Indic","index":6,"n_rows":13,"n_cols":5,"rows_kept":13,"cut":false,"hidden":false,"merged":[]}
["RGS",null,"Empl Class",null,"Class Indc"]
[]
["ACASeasonl",null,"Appointed",null,"Leg Apptmt"]
["Regular",null,"Out Trades",null,"Classified (City)"]
["Temporary",null,"Uncert Oth",null,"Grant"]
["Seasonal",null,"Elected",null,"CnCrnt Job"]
[null,null,"Ancillary",null,"Pol Apptmt"]
[null,null,"Certified",null,"Temporary"]
[null,null,"Charter DH",null,"Dual Cert"]
[null,null,null,null,"Casual "]
[null,null,null,null,"Detail"]
[null,null,null,null,"Permit"]
[null,null,null,null,"Unclassifd"]

{"sheet":"Paygroup","index":7,"n_rows":15,"n_cols":3,"rows_kept":15,"cut":false,"hidden":false,"merged":[]}
["Group","Descr","PayGroup"]
[null,null,{"$f":"CONCATENATE(A2,\"  \",B2)","v":"  "}]
["CCE","City Council Exception Empl",{"$f":"CONCATENATE(A3,\"  \",B3)","v":"CCE  City Council Exception Empl"}]
["CCP","City Council Positive Empl","CCP  City Council Positive Empl"]
["EJD","Election Judges","EJD  Election Judges"]
["FDE","Fire Dept Exception Employees","FDE  Fire Dept Exception Employees"]
["FDP","Fire Dept Positive Employees","FDP  Fire Dept Positive Employees"]
["PDE","Police Dept Exception Employee","PDE  Police Dept Exception Employee"]
["PDP","Police Dept Positive Employee","PDP  Police Dept Positive Employee"]
["PWE","Public Wks Exception Employees","PWE  Public Wks Exception Employees"]
["PWP","Public Wks Positive Employees","PWP  Public Wks Positive Employees"]
["SUP","Step Up Program Employees","SUP  Step Up Program Employees"]
["YCE","YCB Exception Employees","YCE  YCB Exception Employees"]
["YCP","YCB Positive Employee","YCP  YCB Positive Employee"]
["SUY","Summer Youth","SUY  Summer Youth"]